Workbook

Sheet C&S
B1: Januar | C1: Februar | D1: März | E1: April | F1: Mai | G1: Juni | H1: Juli | I1: August | J1: September | K1: Oktober | L1: November | M1: Dezember | N1: Gesamt | P1: 2017 | Q1: Differenz | R1: in %
A2: Saison | B2: - | C2: - | D2: - | E2: - | F2: - | G2: - | H2: - | I2: - | J2: - | K2: - | L2: - | M2: - | N2: - | P2: - | Q2: - | R2: -
A3: NW + GW Stk. | B3: =NW!B3+GW!B3 -> 61.802 | C3: =NW!C3+GW!C3 -> 55.214 | D3: =NW!D3+GW!D3 -> 84.561 | E3: =NW!E3+GW!E3 -> 61.453 | F3: =NW!F3+GW!F3 -> 80.539 | G3: =NW!G3+GW!G3 -> 73.924 | H3: =NW!H3+GW!H3 -> 62.545 | I3: =NW!I3+GW!I3 -> 71.194 | J3: =NW!J3+GW!J3 -> 50.712 | K3: =NW!K3+GW!K3 -> 65.602 | L3: =NW!L3+GW!L3 -> 61.414 | M3: =NW!M3+GW!M3 -> 61.04 | N3: =SUM(B3:M3) -> 790 | P3: =353+384 -> 737 | Q3: =N3-P3 -> 53 | R3: =Q3/P3 -> 0.07191316147
A4: Verk. Stunden | B4: =Aftersales!B3 -> 1377.86583 | C4: =Aftersales!C3 -> 1216.591396 | D4: =Aftersales!D3 -> 1673.764674 | E4: =Aftersales!E3 -> 1783.219471 | F4: =Aftersales!F3 -> 1492.936347 | G4: =Aftersales!G3 -> 1636.96917 | H4: =Aftersales!H3 -> 1453.650808 | I4: =Aftersales!I3 -> 1512.078074 | J4: =Aftersales!J3 -> 1379.987145 | K4: =Aftersales!K3 -> 1958.427591 | L4: =Aftersales!L3 -> 1910.319126 | M4: =Aftersales!M3 -> 1629.190366 | N4: =SUM(B4:M4) -> 19025 | P4: 17195 | Q4: =N4-P4 -> 1830 | R4: =Q4/P4 -> 0.1064262867
A5: Umsatzerlöse | B5: =Sales!B4+Aftersales!B4 -> 949541.0285 | C5: =Sales!C4+Aftersales!C4 -> 876120.9597 | D5: =Sales!D4+Aftersales!D4 -> 1218703.413 | E5: =Sales!E4+Aftersales!E4 -> 1146524.911 | F5: =Sales!F4+Aftersales!F4 -> 1348414.401 | G5: =Sales!G4+Aftersales!G4 -> 1192350.904 | H5: =Sales!H4+Aftersales!H4 -> 994658.4803 | I5: =Sales!I4+Aftersales!I4 -> 1009967.849 | J5: =Sales!J4+Aftersales!J4 -> 992313.8195 | K5: =Sales!K4+Aftersales!K4 -> 1264106.937 | L5: =Sales!L4+Aftersales!L4 -> 1016017.673 | M5: =Sales!M4+Aftersales!M4 -> 1131910.374 | N5: =SUM(B5:M5) -> 13140630.75 | P5: 12316168 | Q5: 824462.75 | R5: 0.06694149917
A6: Einsatzwerte | B6: =Sales!B6+Aftersales!B6 -> 742859.3343 | C6: =Sales!C6+Aftersales!C6 -> 690478.0497 | D6: =Sales!D6+Aftersales!D6 -> 962183.2981 | E6: =Sales!E6+Aftersales!E6 -> 885923.2028 | F6: =Sales!F6+Aftersales!F6 -> 1097762.672 | G6: =Sales!G6+Aftersales!G6 -> 941433.3475 | H6: =Sales!H6+Aftersales!H6 -> 777203.0886 | I6: =Sales!I6+Aftersales!I6 -> 785833.9884 | J6: =Sales!J6+Aftersales!J6 -> 781861.2464 | K6: =Sales!K6+Aftersales!K6 -> 977487.9454 | L6: =Sales!L6+Aftersales!L6 -> 754578.9005 | M6: =Sales!M6+Aftersales!M6 -> 886763.1062 | N6: =SUM(B6:M6) -> 10284368.18 | P6: 9694577 | Q6: 589791.18 | R6: 0.06083722683
A7: Bruttoertrag | B7: =Sales!B7+Aftersales!B7 -> 206681.6942 | C7: =Sales!C7+Aftersales!C7 -> 185642.91 | D7: =Sales!D7+Aftersales!D7 -> 256520.1153 | E7: =Sales!E7+Aftersales!E7 -> 260601.7079 | F7: =Sales!F7+Aftersales!F7 -> 250651.7284 | G7: =Sales!G7+Aftersales!G7 -> 250917.5566 | H7: =Sales!H7+Aftersales!H7 -> 217455.3917 | I7: =Sales!I7+Aftersales!I7 -> 224133.861 | J7: =Sales!J7+Aftersales!J7 -> 210452.5731 | K7: =Sales!K7+Aftersales!K7 -> 286618.9914 | L7: =Sales!L7+Aftersales!L7 -> 261438.7728 | M7: =Sales!M7+Aftersales!M7 -> 245147.2676 | N7: =SUM(B7:M7) -> 2856262.57 | P7: 2621591 | Q7: 234671.57 | R7: 0.08951494341
A9: Variable Kosten | B9: =Sales!B10+Aftersales!B10 -> 21573.77303 | C9: =Sales!C10+Aftersales!C10 -> 20085.73832 | D9: =Sales!D10+Aftersales!D10 -> 28000.70127 | E9: =Sales!E10+Aftersales!E10 -> 25656.08028 | F9: =Sales!F10+Aftersales!F10 -> 32161.969 | G9: =Sales!G10+Aftersales!G10 -> 27397.21495 | H9: =Sales!H10+Aftersales!H10 -> 22564.91164 | I9: =Sales!I10+Aftersales!I10 -> 22793.60298 | J9: =Sales!J10+Aftersales!J10 -> 22742.80636 | K9: =Sales!K10+Aftersales!K10 -> 28312.4789 | L9: =Sales!L10+Aftersales!L10 -> 21649.69207 | M9: =Sales!M10+Aftersales!M10 -> 25761.03119 | N9: =SUM(B9:M9) -> 298700 | P9: 288566 | Q9: 10134 | R9: 0.03511848243
A10: Fixum/Prov./Soz. | B10: =Sales!B11+Aftersales!B11 -> 15165.30704 | C10: =Sales!C11+Aftersales!C11 -> 14234.00729 | D10: =Sales!D11+Aftersales!D11 -> 19881.55309 | E10: =Sales!E11+Aftersales!E11 -> 17784.49167 | F10: =Sales!F11+Aftersales!F11 -> 23580.18281 | G10: =Sales!G11+Aftersales!G11 -> 19454.30484 | H10: =Sales!H11+Aftersales!H11 -> 15840.40923 | I10: =Sales!I11+Aftersales!I11 -> 15925.27417 | J10: =Sales!J11+Aftersales!J11 -> 16112.71556 | K10: =Sales!K11+Aftersales!K11 -> 19642.19753 | L10: =Sales!L11+Aftersales!L11 -> 14304.91865 | M10: =Sales!M11+Aftersales!M11 -> 18136.63813 | N10: 210062 | P10: 200644 | Q10: 9418 | R10: 0.04693885688
A11: Provisionen | B11: =Sales!B12+Aftersales!B12 -> 932.0301335 | C11: =Sales!C12+Aftersales!C12 -> 874.7942709 | D11: =Sales!D12+Aftersales!D12 -> 1221.881399 | E11: =Sales!E12+Aftersales!E12 -> 1093.000102 | F11: =Sales!F12+Aftersales!F12 -> 1449.191953 | G11: =Sales!G12+Aftersales!G12 -> 1195.623556 | H11: =Sales!H12+Aftersales!H12 -> 973.5205946 | I11: =Sales!I12+Aftersales!I12 -> 978.736228 | J11: =Sales!J12+Aftersales!J12 -> 990.2560094 | K11: =Sales!K12+Aftersales!K12 -> 1207.171074 | L11: =Sales!L12+Aftersales!L12 -> 879.1523442 | M11: =Sales!M12+Aftersales!M12 -> 1114.642335 | N11: 12910 | P11: 12512 | Q11: 398 | R11: 0.03180946292
A12: Fertigmachen | B12: =Sales!B13+Aftersales!B13 -> 2000.652135 | C12: =Sales!C13+Aftersales!C13 -> 1877.792319 | D12: =Sales!D13+Aftersales!D13 -> 2622.833256 | E12: =Sales!E13+Aftersales!E13 -> 2346.182713 | F12: =Sales!F13+Aftersales!F13 -> 3110.767421 | G12: =Sales!G13+Aftersales!G13 -> 2566.469402 | H12: =Sales!H13+Aftersales!H13 -> 2089.713611 | I12: =Sales!I13+Aftersales!I13 -> 2100.909245 | J12: =Sales!J13+Aftersales!J13 -> 2125.637067 | K12: =Sales!K13+Aftersales!K13 -> 2591.256762 | L12: =Sales!L13+Aftersales!L13 -> 1887.147154 | M12: =Sales!M13+Aftersales!M13 -> 2392.638915 | N12: 27712 | P12: 25323 | Q12: 2389 | R12: 0.09434111282
A13: Kulanz | B13: =Sales!B14+Aftersales!B14 -> 3475.783722 | C13: =Sales!C14+Aftersales!C14 -> 3099.144444 | D13: =Sales!D14+Aftersales!D14 -> 4274.433521 | E13: =Sales!E14+Aftersales!E14 -> 4432.4058 | F13: =Sales!F14+Aftersales!F14 -> 4021.826816 | G13: =Sales!G14+Aftersales!G14 -> 4180.817159 | H13: =Sales!H14+Aftersales!H14 -> 3661.268208 | I13: =Sales!I14+Aftersales!I14 -> 3788.683341 | J13: =Sales!J14+Aftersales!J14 -> 3514.197723 | K13: =Sales!K14+Aftersales!K14 -> 4871.853533 | L13: =Sales!L14+Aftersales!L14 -> 4578.473922 | M13: =Sales!M14+Aftersales!M14 -> 4117.111813 | N13: 48016 | P13: 50086 | Q13: -2070 | R13: =Q13/P13 -> -0.04132891427
A14: sonst. variable Kosten | B14: =Sales!B15+Aftersales!B15 -> 0 | C14: =Sales!C15+Aftersales!C15 -> 0 | D14: =Sales!D15+Aftersales!D15 -> 0 | E14: =Sales!E15+Aftersales!E15 -> 0 | F14: =Sales!F15+Aftersales!F15 -> 0 | G14: =Sales!G15+Aftersales!G15 -> 0 | H14: =Sales!H15+Aftersales!H15 -> 0 | I14: =Sales!I15+Aftersales!I15 -> 0 | J14: =Sales!J15+Aftersales!J15 -> 0 | K14: =Sales!K15+Aftersales!K15 -> 0 | L14: =Sales!L15+Aftersales!L15 -> 0 | M14: =Sales!M15+Aftersales!M15 -> 0 | N14: 0 | P14: 0 | Q14: 0 | R14: =Q14/P14 -> 
A15: Bruttoertrag II | B15: =Sales!B16+Aftersales!B16 -> 185107.9212 | C15: =Sales!C16+Aftersales!C16 -> 165557.1717 | D15: =Sales!D16+Aftersales!D16 -> 228519.4141 | E15: =Sales!E16+Aftersales!E16 -> 234945.6277 | F15: =Sales!F16+Aftersales!F16 -> 218489.7594 | G15: =Sales!G16+Aftersales!G16 -> 223520.3416 | H15: =Sales!H16+Aftersales!H16 -> 194890.48 | I15: =Sales!I16+Aftersales!I16 -> 201340.258 | J15: =Sales!J16+Aftersales!J16 -> 187709.7667 | K15: =Sales!K16+Aftersales!K16 -> 258306.5125 | L15: =Sales!L16+Aftersales!L16 -> 239789.0808 | M15: =Sales!M16+Aftersales!M16 -> 219386.2364 | N15: 2557562.57 | P15: 2333025 | Q15: 224537.57 | R15: 0.09624310498
A16: Direkte Kosten | B16: =Sales!B17+Aftersales!B17 -> 114358.3333 | C16: =Sales!C17+Aftersales!C17 -> 114358.3333 | D16: =Sales!D17+Aftersales!D17 -> 114358.3333 | E16: =Sales!E17+Aftersales!E17 -> 114358.3333 | F16: =Sales!F17+Aftersales!F17 -> 114358.3333 | G16: =Sales!G17+Aftersales!G17 -> 114358.3333 | H16: =Sales!H17+Aftersales!H17 -> 114358.3333 | I16: =Sales!I17+Aftersales!I17 -> 114358.3333 | J16: =Sales!J17+Aftersales!J17 -> 114358.3333 | K16: =Sales!K17+Aftersales!K17 -> 114358.3333 | L16: =Sales!L17+Aftersales!L17 -> 114358.3333 | M16: =Sales!M17+Aftersales!M17 -> 114358.3333 | N16: 1372300 | P16: 1242228 | Q16: 130072 | R16: 0.1047086364
A17: Personalkosten | B17: =Sales!B18+Aftersales!B18 -> 77855.625 | C17: =Sales!C18+Aftersales!C18 -> 77855.625 | D17: =Sales!D18+Aftersales!D18 -> 77855.625 | E17: =Sales!E18+Aftersales!E18 -> 77855.625 | F17: =Sales!F18+Aftersales!F18 -> 77855.625 | G17: =Sales!G18+Aftersales!G18 -> 77855.625 | H17: =Sales!H18+Aftersales!H18 -> 77855.625 | I17: =Sales!I18+Aftersales!I18 -> 77855.625 | J17: =Sales!J18+Aftersales!J18 -> 77855.625 | K17: =Sales!K18+Aftersales!K18 -> 77855.625 | L17: =Sales!L18+Aftersales!L18 -> 77855.625 | M17: =Sales!M18+Aftersales!M18 -> 77855.625 | N17: 934267.5 | P17: 871532 | Q17: 62735.5 | R17: 0.07198301382
A18: Werbekosten | B18: =Sales!B19+Aftersales!B19 -> 3446.875 | C18: =Sales!C19+Aftersales!C19 -> 3446.875 | D18: =Sales!D19+Aftersales!D19 -> 3446.875 | E18: =Sales!E19+Aftersales!E19 -> 3446.875 | F18: =Sales!F19+Aftersales!F19 -> 3446.875 | G18: =Sales!G19+Aftersales!G19 -> 3446.875 | H18: =Sales!H19+Aftersales!H19 -> 3446.875 | I18: =Sales!I19+Aftersales!I19 -> 3446.875 | J18: =Sales!J19+Aftersales!J19 -> 3446.875 | K18: =Sales!K19+Aftersales!K19 -> 3446.875 | L18: =Sales!L19+Aftersales!L19 -> 3446.875 | M18: =Sales!M19+Aftersales!M19 -> 3446.875 | N18: 41362.5 | P18: 47112 | Q18: -5749.5 | R18: -0.122038971
A19: Fahrzeugkosten | B19: =Sales!B20+Aftersales!B20 -> 6354.166667 | C19: =Sales!C20+Aftersales!C20 -> 6354.166667 | D19: =Sales!D20+Aftersales!D20 -> 6354.166667 | E19: =Sales!E20+Aftersales!E20 -> 6354.166667 | F19: =Sales!F20+Aftersales!F20 -> 6354.166667 | G19: =Sales!G20+Aftersales!G20 -> 6354.166667 | H19: =Sales!H20+Aftersales!H20 -> 6354.166667 | I19: =Sales!I20+Aftersales!I20 -> 6354.166667 | J19: =Sales!J20+Aftersales!J20 -> 6354.166667 | K19: =Sales!K20+Aftersales!K20 -> 6354.166667 | L19: =Sales!L20+Aftersales!L20 -> 6354.166667 | M19: =Sales!M20+Aftersales!M20 -> 6354.166667 | N19: 76250 | P19: 73555 | Q19: 2695 | R19: 0.03663924954
A20: Abschreibungen | B20: =Sales!B21+Aftersales!B21 -> 13993.75 | C20: =Sales!C21+Aftersales!C21 -> 13993.75 | D20: =Sales!D21+Aftersales!D21 -> 13993.75 | E20: =Sales!E21+Aftersales!E21 -> 13993.75 | F20: =Sales!F21+Aftersales!F21 -> 13993.75 | G20: =Sales!G21+Aftersales!G21 -> 13993.75 | H20: =Sales!H21+Aftersales!H21 -> 13993.75 | I20: =Sales!I21+Aftersales!I21 -> 13993.75 | J20: =Sales!J21+Aftersales!J21 -> 13993.75 | K20: =Sales!K21+Aftersales!K21 -> 13993.75 | L20: =Sales!L21+Aftersales!L21 -> 13993.75 | M20: =Sales!M21+Aftersales!M21 -> 13993.75 | N20: 167925 | P20: 169916 | Q20: -1991 | R20: -0.01171755456
A21: Gemeinkosten | B21: =Sales!B22+Aftersales!B22 -> 12707.91667 | C21: =Sales!C22+Aftersales!C22 -> 12707.91667 | D21: =Sales!D22+Aftersales!D22 -> 12707.91667 | E21: =Sales!E22+Aftersales!E22 -> 12707.91667 | F21: =Sales!F22+Aftersales!F22 -> 12707.91667 | G21: =Sales!G22+Aftersales!G22 -> 12707.91667 | H21: =Sales!H22+Aftersales!H22 -> 12707.91667 | I21: =Sales!I22+Aftersales!I22 -> 12707.91667 | J21: =Sales!J22+Aftersales!J22 -> 12707.91667 | K21: =Sales!K22+Aftersales!K22 -> 12707.91667 | L21: =Sales!L22+Aftersales!L22 -> 12707.91667 | M21: =Sales!M22+Aftersales!M22 -> 12707.91667 | N21: 152495 | P21: 80114 | Q21: 72381 | R21: 0.9034750481
A22: Deckungsbeitrag | B22: =Sales!B23+Aftersales!B23 -> 70749.58787 | C22: =Sales!C23+Aftersales!C23 -> 51198.83835 | D22: =Sales!D23+Aftersales!D23 -> 114161.0807 | E22: =Sales!E23+Aftersales!E23 -> 120587.2943 | F22: =Sales!F23+Aftersales!F23 -> 104131.4261 | G22: =Sales!G23+Aftersales!G23 -> 109162.0083 | H22: =Sales!H23+Aftersales!H23 -> 80532.14672 | I22: =Sales!I23+Aftersales!I23 -> 86981.92465 | J22: =Sales!J23+Aftersales!J23 -> 73351.4334 | K22: =Sales!K23+Aftersales!K23 -> 143948.1792 | L22: =Sales!L23+Aftersales!L23 -> 125430.7474 | M22: =Sales!M23+Aftersales!M23 -> 105027.903 | N22: 1185262.57 | P22: 1090797 | Q22: 94465.57 | R22: 0.08660233756
A24: indirekte Kosten | B24: =SUM(B25:B31) -> 92176.08333 | C24: =SUM(C25:C31) -> 92176.08333 | D24: 92176.08333 | E24: 92176.08333 | F24: 92176.08333 | G24: 92176.08333 | H24: 92176.08333 | I24: 92176.08333 | J24: 92176.08333 | K24: 92176.08333 | L24: 92176.08333 | M24: 92176.08333 | N24: =SUM(B24:M24) -> 1106113 | P24: 1171613 | Q24: -65500 | R24: -0.05590583239
A25: Verwaltungspersonal | B25: =$N$25/12 -> 27916.66667 | C25: 27916.66667 | D25: 27916.66667 | E25: 27916.66667 | F25: 27916.66667 | G25: 27916.66667 | H25: 27916.66667 | I25: 27916.66667 | J25: 27916.66667 | K25: 27916.66667 | L25: 27916.66667 | M25: =$N$25/12 -> 27916.66667 | N25: 335000 | P25: 331801 | Q25: 3199 | R25: 0.009641321153
A26: Imagewerbung | B26: =$N$26/12 -> 1000 | C26: 1000 | D26: 1000 | E26: 1000 | F26: 1000 | G26: 1000 | H26: 1000 | I26: 1000 | J26: 1000 | K26: 1000 | L26: 1000 | M26: =$N$26/12 -> 1000 | N26: 12000 | P26: 12036 | Q26: -36 | R26: -0.002991026919
A27: Fahrzeugkosten | B27: =$N$27/12 -> 916.6666667 | C27: 916.6666667 | D27: 916.6666667 | E27: 916.6666667 | F27: 916.6666667 | G27: 916.6666667 | H27: 916.6666667 | I27: 916.6666667 | J27: 916.6666667 | K27: 916.6666667 | L27: 916.6666667 | M27: =$N$27/12 -> 916.6666667 | N27: 11000 | P27: 11175 | Q27: -175 | R27: -0.01565995526
A28: Abschreibungen | B28: =$N$28/12 -> 10000 | C28: 10000 | D28: 10000 | E28: 10000 | F28: 10000 | G28: 10000 | H28: 10000 | I28: 10000 | J28: 10000 | K28: 10000 | L28: 10000 | M28: =$N$28/12 -> 10000 | N28: 120000 | P28: 111925 | Q28: 8075 | R28: 0.07214652669
A29: Gemeinkosten | B29: =$N$29/12 -> 32500 | C29: 32500 | D29: 32500 | E29: 32500 | F29: 32500 | G29: 32500 | H29: 32500 | I29: 32500 | J29: 32500 | K29: 32500 | L29: 32500 | M29: =$N$29/12 -> 32500 | N29: 390000 | P29: 466563 | Q29: -76563 | R29: -0.1641000251
A30: Raumkosten | B30: =$N$30/12 -> 14342.75 | C30: 14342.75 | D30: 14342.75 | E30: 14342.75 | F30: 14342.75 | G30: 14342.75 | H30: 14342.75 | I30: 14342.75 | J30: 14342.75 | K30: 14342.75 | L30: 14342.75 | M30: =$N$30/12 -> 14342.75 | N30: 172113 | P30: 172113 | Q30: 0 | R30: 0
A31: Kalk. Kosten | B31: =$N$31/12 -> 5500 | C31: 5500 | D31: 5500 | E31: 5500 | F31: 5500 | G31: 5500 | H31: 5500 | I31: 5500 | J31: 5500 | K31: 5500 | L31: 5500 | M31: =$N$31/12 -> 5500 | N31: 66000 | P31: 66000 | Q31: 0 | R31: 0
A33: Betriebsergebnis | B33: =B22-B24 -> -21426.49547 | C33: =C22-C24 -> -40977.24498 | D33: 21984.99739 | E33: 28411.211 | F33: 11955.34272 | G33: 16985.92494 | H33: -11643.93662 | I33: -5194.158685 | J33: -18824.64993 | K33: 51772.09584 | L33: 33254.6641 | M33: 12851.8197 | N33: =N22-N24 -> 79149.57 | P33: -80816 | Q33: 159965.57
A34: Neutrales Ergebnis | B34: =$N$34/12 -> -6416.666667 | C34: -6416.666667 | D34: -6416.666667 | E34: -6416.666667 | F34: -6416.666667 | G34: -6416.666667 | H34: -6416.666667 | I34: -6416.666667 | J34: -6416.666667 | K34: -6416.666667 | L34: -6416.666667 | M34: =$N$34/12 -> -6416.666667 | N34: -77000 | P34: -93143 | Q34: 16143
A35: Untenehmensergebnis | B35: =SUM(B33:B34) -> -27843.16213 | C35: =SUM(C33:C34) -> -47393.91165 | D35: 15568.33072 | E35: 21994.54433 | F35: 5538.676055 | G35: 10569.25827 | H35: -18060.60328 | I35: -11610.82535 | J35: -25241.3166 | K35: 45355.42917 | L35: 26837.99743 | M35: 6435.153034 | N35: =N33+N34 -> 2149.57 | P35: -173960 | Q35: 176109.57
M37: DB pro Tag | N37: =N22/251 -> 4722.161633
M38: DB pro Monat | N38: =(N37*251)/12 -> 98771.88083
M40: Umsatzrendite | N40: =N35/N5 -> 0.0001635819498
M42: Personal vs. BE | N42: =N10+N11+N17+N25 -> 1492239.5
J43: =790/220 -> 3.590909091 | M43: Ziel < 50% | N43: =N42/N7 -> 0.5224447905
M45: AfA vs. BE | N45: =N20+N28 -> 287925
M46: Ziel < 5% | N46: =N45/N7 -> 0.100804808

Sheet Sales
B1: Januar | C1: Februar | D1: März | E1: April | F1: Mai | G1: Juni | H1: Juli | I1: August | J1: September | K1: Oktober | L1: November | M1: Dezember | N1: Gesamt
A2: Saison | B2: 0.07219443327 | C2: 0.06776098148 | D2: 0.09464611922 | E2: 0.08466305979 | F2: 0.1122534433 | G2: 0.09261220419 | H2: 0.07540825675 | I2: 0.07581225624 | J2: 0.07670457083 | K2: 0.09350666722 | L2: 0.06809855493 | M2: 0.08633945278 | N2: =SUM(B2:M2) -> 1
A3: NW + GW Stk. | B3: =$N$3*B2 -> 57.03360228 | C3: =$N$3*C2 -> 53.53117537 | D3: 74.77043418 | E3: 66.88381724 | F3: 88.68022021 | G3: 73.16364131 | H3: 59.57252283 | I3: 59.89168243 | J3: 60.59661095 | K3: 73.87026711 | L3: 53.7978584 | M3: 68.2081677 | N3: =NW!N3+GW!N3 -> 790
A4: Umsatzerlöse | B4: =$N$4*B2 -> 677977.9228 | C4: =$N$4*C2 -> 636343.3771 | D4: 888821.7056 | E4: 795070.7945 | F4: 1054172.086 | G4: 869721.2095 | H4: 708158.9391 | I4: 711952.8983 | J4: 720332.6246 | K4: 878121.1119 | L4: 639513.5294 | M4: 810813.8011 | N4: =NW!N4+GW!N4 -> 9391000
A5: Umsatz / Stk. | B5: =$N$4/$N$3 -> 11887.34177 | C5: =$N$4/$N$3 -> 11887.34177 | D5: 11887.34177 | E5: 11887.34177 | F5: 11887.34177 | G5: 11887.34177 | H5: 11887.34177 | I5: 11887.34177 | J5: 11887.34177 | K5: 11887.34177 | L5: 11887.34177 | M5: 11887.34177 | N5: =N4/N3 -> 11887.34177
A6: Einsatzwerte | B6: =$N$6*B2 -> 621313.956 | C6: =$N$6*C2 -> 583159.1379 | D6: 814535.8595 | E6: 728620.4522 | F6: 966066.6035 | G6: 797031.7427 | H6: 648972.5066 | I6: 652449.3747 | J6: 660128.7411 | K6: 804729.5989 | L6: 586064.3356 | M6: 743047.6914 | N6: =NW!N6+GW!N6 -> 8606120
A7: Bruttoertrag | B7: =$N$7*B2 -> 56663.96678 | C7: =$N$7*C2 -> 53184.23914 | D7: 74285.84605 | E7: 66450.34237 | F7: 88105.48258 | G7: 72689.46682 | H7: 59186.43256 | I7: 59503.52368 | J7: 60203.88355 | K7: 73391.51297 | L7: 53449.1938 | M7: 67766.1097 | N7: =N4-N6 -> 784880
A8: Bruttoertrag / Stk. | B8: =B7/B3 -> 993.5189873 | C8: =C7/C3 -> 993.5189873 | D8: 993.5189873 | E8: 993.5189873 | F8: 993.5189873 | G8: 993.5189873 | H8: 993.5189873 | I8: 993.5189873 | J8: 993.5189873 | K8: 993.5189873 | L8: 993.5189873 | M8: 993.5189873 | N8: =N7/N3 -> 993.5189873
A10: Variable Kosten | B10: =$N$10*B2 -> 18640.60267 | C10: =$N$10*C2 -> 17495.88542 | D10: 24437.62798 | E10: 21860.00204 | F10: 28983.83906 | G10: 23912.47112 | H10: 19470.41189 | I10: 19574.72456 | J10: 19805.12019 | K10: 24143.42148 | L10: 17583.04688 | M10: 22292.84671 | N10: =NW!N10+GW!N10 -> 258200
A11: Fixum/Prov./Soz. | B11: =$N$11*B2 -> 15165.30704 | C11: =$N$11*C2 -> 14234.00729 | D11: 19881.55309 | E11: 17784.49167 | F11: 23580.18281 | G11: 19454.30484 | H11: 15840.40923 | I11: 15925.27417 | J11: 16112.71556 | K11: 19642.19753 | L11: 14304.91865 | M11: 18136.63813 | N11: =NW!N11+GW!N11 -> 210062
A12: Provisionen | B12: =$N$12*B2 -> 932.0301335 | C12: =$N$12*C2 -> 874.7942709 | D12: 1221.881399 | E12: 1093.000102 | F12: 1449.191953 | G12: 1195.623556 | H12: 973.5205946 | I12: 978.736228 | J12: 990.2560094 | K12: 1207.171074 | L12: 879.1523442 | M12: 1114.642335 | N12: =NW!N12+GW!N12 -> 12910
A13: Fertigmachen | B13: =$N$13*B2 -> 2000.652135 | C13: =$N$13*C2 -> 1877.792319 | D13: 2622.833256 | E13: 2346.182713 | F13: 3110.767421 | G13: 2566.469402 | H13: 2089.713611 | I13: 2100.909245 | J13: 2125.637067 | K13: 2591.256762 | L13: 1887.147154 | M13: 2392.638915 | N13: =NW!N13+GW!N13 -> 27712
A14: Kulanz | B14: =$N$14*B2 -> 542.6133604 | C14: =$N$14*C2 -> 509.2915368 | D14: 711.360232 | E14: 636.3275574 | F14: 843.6968799 | G14: 696.0733267 | H14: 566.7684577 | I14: 569.8049179 | J14: 576.5115543 | K14: 702.7961109 | L14: 511.8287389 | M14: 648.9273271 | N14: =NW!N14+GW!N14 -> 7516
A15: sonst. variable Kosten | B15: =$N$15*B2 -> 0 | C15: =$N$15*C2 -> 0 | D15: 0 | E15: 0 | F15: 0 | G15: 0 | H15: 0 | I15: 0 | J15: 0 | K15: 0 | L15: 0 | M15: 0 | N15: =NW!N15+GW!N15 -> 0
A16: Bruttoertrag II | B16: =$N$16*B2 -> 38023.36411 | C16: =$N$16*C2 -> 35688.35373 | D16: 49848.21807 | E16: 44590.34033 | F16: 59121.64352 | G16: 48776.9957 | H16: 39716.02067 | I16: 39928.79912 | J16: 40398.76336 | K16: 49248.09149 | L16: 35866.14691 | M16: 45473.26299 | N16: =N7-N10 -> 526680
A17: Direkte Kosten | B17: =$N$17/12 -> 29691.66667 | C17: =$N$17/12 -> 29691.66667 | D17: 29691.66667 | E17: 29691.66667 | F17: 29691.66667 | G17: 29691.66667 | H17: 29691.66667 | I17: 29691.66667 | J17: 29691.66667 | K17: 29691.66667 | L17: 29691.66667 | M17: 29691.66667 | N17: =N18+N19+N20+N21+N22 -> 356300
A18: Personalkosten | B18: =$N$18/12 -> 10400 | C18: =$N$18/12 -> 10400 | D18: 10400 | E18: 10400 | F18: 10400 | G18: 10400 | H18: 10400 | I18: 10400 | J18: 10400 | K18: 10400 | L18: 10400 | M18: 10400 | N18: =NW!N18+GW!N18 -> 124800
A19: Werbekosten | B19: =$N$19/12 -> 2583.333333 | C19: =$N$19/12 -> 2583.333333 | D19: 2583.333333 | E19: 2583.333333 | F19: 2583.333333 | G19: 2583.333333 | H19: 2583.333333 | I19: 2583.333333 | J19: 2583.333333 | K19: 2583.333333 | L19: 2583.333333 | M19: 2583.333333 | N19: =NW!N19+GW!N19 -> 31000
A20: Fahrzeugkosten | B20: =$N$20/12 -> 3375 | C20: =$N$20/12 -> 3375 | D20: 3375 | E20: 3375 | F20: 3375 | G20: 3375 | H20: 3375 | I20: 3375 | J20: 3375 | K20: 3375 | L20: 3375 | M20: 3375 | N20: =NW!N20+GW!N20 -> 40500
A21: Abschreibungen | B21: =$N$21/12 -> 10000 | C21: =$N$21/12 -> 10000 | D21: 10000 | E21: 10000 | F21: 10000 | G21: 10000 | H21: 10000 | I21: 10000 | J21: 10000 | K21: 10000 | L21: 10000 | M21: 10000 | N21: =NW!N21+GW!N21 -> 120000
A22: Gemeinkosten | B22: =$N$22/12 -> 3333.333333 | C22: =$N$22/12 -> 3333.333333 | D22: 3333.333333 | E22: 3333.333333 | F22: 3333.333333 | G22: 3333.333333 | H22: 3333.333333 | I22: 3333.333333 | J22: 3333.333333 | K22: 3333.333333 | L22: 3333.333333 | M22: 3333.333333 | N22: =NW!N22+GW!N22 -> 40000
A23: Deckungsbeitrag | B23: =B16-B17 -> 8331.697445 | C23: =C16-C17 -> 5996.687059 | D23: 20156.5514 | E23: 14898.67367 | F23: 29429.97685 | G23: 19085.32903 | H23: 10024.354 | I23: 10237.13245 | J23: 10707.0967 | K23: 19556.42483 | L23: 6174.480245 | M23: 15781.59632 | N23: =N16-N17 -> 170380
A24: Deckungsbeitrag / Stk. | B24: =B23/B3 -> 146.0840121 | C24: =C23/C3 -> 112.0223312 | D24: 269.5791675 | E24: 222.7545359 | F24: 331.8663033 | G24: 260.8581078 | H24: 168.2714366 | I24: 170.9274483 | J24: 176.6946456 | K24: 264.7401396 | L24: 114.7718595 | M24: 231.3739961 | N24: =N23/N3 -> 215.6708861

Sheet NW
B1: Januar | C1: Februar | D1: März | E1: April | F1: Mai | G1: Juni | H1: Juli | I1: August | J1: September | K1: Oktober | L1: November | M1: Dezember | N1: Gesamt
A2: Saison | B2: 0.0794 | C2: 0.065 | D2: 0.0837 | E2: 0.0679 | F2: 0.1045 | G2: 0.1024 | H2: 0.0679 | I2: 0.0772 | J2: 0.0786 | K2: 0.0958 | L2: 0.0922 | M2: 0.0854 | N2: =SUM(B2:M2) -> 1
A3: Neuwagen Stk. | B3: =$N$3*B2 -> 29.378 | C3: =$N$3*C2 -> 24.05 | D3: 30.969 | E3: 25.123 | F3: 38.665 | G3: 37.888 | H3: 25.123 | I3: 28.564 | J3: 29.082 | K3: 35.446 | L3: 34.114 | M3: 31.598 | N3: 370
A4: Umsatzerlöse | B4: =$N$4*B2 -> 478861.4 | C4: =$N$4*C2 -> 392015 | D4: 504794.7 | E4: 409504.9 | F4: 630239.5 | G4: 617574.4 | H4: 409504.9 | I4: 465593.2 | J4: 474036.6 | K4: 577769.8 | L4: 556058.2 | M4: 515047.4 | N4: =N3*N5 -> 6031000
A5: Umsatz / Stk. | B5: =$N$5 -> 16300 | C5: =$N$5 -> 16300 | D5: 16300 | E5: 16300 | F5: 16300 | G5: 16300 | H5: 16300 | I5: 16300 | J5: 16300 | K5: 16300 | L5: 16300 | M5: 16300 | N5: 16300
A6: Einsatzwerte | B6: =$N$6*B2 -> 440552.488 | C6: =$N$6*C2 -> 360653.8 | D6: 464411.124 | E6: 376744.508 | F6: 579820.34 | G6: 568168.448 | H6: 376744.508 | I6: 428345.744 | J6: 436113.672 | K6: 531548.216 | L6: 511573.544 | M6: 473843.608 | N6: =(N4-N4*O6) -> 5548520 | O6: 0.08 | P6: (BE!!!)
A7: Bruttoertrag | B7: =$N$7*B2 -> 38308.912 | C7: =$N$7*C2 -> 31361.2 | D7: 40383.576 | E7: 32760.392 | F7: 50419.16 | G7: 49405.952 | H7: 32760.392 | I7: 37247.456 | J7: 37922.928 | K7: 46221.584 | L7: 44484.656 | M7: 41203.792 | N7: =N4-N6+R6 -> 482480
A8: Bruttoertrag / Stk. | B8: =$N$8 -> 1304 | C8: =$N$8 -> 1304 | D8: 1304 | E8: 1304 | F8: 1304 | G8: 1304 | H8: 1304 | I8: 1304 | J8: 1304 | K8: 1304 | L8: 1304 | M8: 1304 | N8: =N7/N3 -> 1304
A10: Variable Kosten | B10: =$N$10*B2 -> 11163.64 | C10: =$N$10*C2 -> 9139 | D10: 11768.22 | E10: 9546.74 | F10: 14692.7 | G10: 14397.44 | H10: 9546.74 | I10: 10854.32 | J10: 11051.16 | K10: 13469.48 | L10: 12963.32 | M10: 12007.24 | N10: =N3*R10 -> 140600 | Q10: pro Fzg. | R10: 380
A11: Fixum/Prov./Soz. | B11: =$N$11*B2 -> 9489.094 | C11: =$N$11*C2 -> 7768.15 | D11: 10002.987 | E11: 8114.729 | F11: 12488.795 | G11: 12237.824 | H11: 8114.729 | I11: 9226.172 | J11: 9393.486 | K11: 11449.058 | L11: 11018.822 | M11: 10206.154 | N11: =N10*O11 -> 119510 | O11: 0.85 | P11: =SUM(O11:O14) -> 1
A12: Provisionen | B12: =$N$12*B2 -> 558.182 | C12: =$N$12*C2 -> 456.95 | D12: 588.411 | E12: 477.337 | F12: 734.635 | G12: 719.872 | H12: 477.337 | I12: 542.716 | J12: 552.558 | K12: 673.474 | L12: 648.166 | M12: 600.362 | N12: =N10*O12 -> 7030 | O12: 0.05
A13: Fertigmachen | B13: =$N$13*B2 -> 893.0912 | C13: =$N$13*C2 -> 731.12 | D13: 941.4576 | E13: 763.7392 | F13: 1175.416 | G13: 1151.7952 | H13: 763.7392 | I13: 868.3456 | J13: 884.0928 | K13: 1077.5584 | L13: 1037.0656 | M13: 960.5792 | N13: =N10*O13 -> 11248 | O13: 0.08
A14: Kulanz | B14: =$N$14*B2 -> 223.2728 | C14: =$N$14*C2 -> 182.78 | D14: 235.3644 | E14: 190.9348 | F14: 293.854 | G14: 287.9488 | H14: 190.9348 | I14: 217.0864 | J14: 221.0232 | K14: 269.3896 | L14: 259.2664 | M14: 240.1448 | N14: =N10*O14 -> 2812 | O14: 0.02
A15: sonst. variable Kosten | B15: =$N$15*B2 -> 0 | C15: =$N$15*C2 -> 0 | D15: 0 | E15: 0 | F15: 0 | G15: 0 | H15: 0 | I15: 0 | J15: 0 | K15: 0 | L15: 0 | M15: 0 | N15: 0
A16: Bruttoertrag II | B16: =$N$16*B2 -> 27145.272 | C16: =$N$16*C2 -> 22222.2 | D16: 28615.356 | E16: 23213.652 | F16: 35726.46 | G16: 35008.512 | H16: 23213.652 | I16: 26393.136 | J16: 26871.768 | K16: 32752.104 | L16: 31521.336 | M16: 29196.552 | N16: =N7-N10 -> 341880
A17: Direkte Kosten | B17: =$N$17/12 -> 22900 | C17: =$N$17/12 -> 22900 | D17: 22900 | E17: 22900 | F17: 22900 | G17: 22900 | H17: 22900 | I17: 22900 | J17: 22900 | K17: 22900 | L17: 22900 | M17: 22900 | N17: =N18+N19+N20+N21+N22 -> 274800
A18: Personalkosten | B18: =$N$18/12 -> 5400 | C18: =$N$18/12 -> 5400 | D18: 5400 | E18: 5400 | F18: 5400 | G18: 5400 | H18: 5400 | I18: 5400 | J18: 5400 | K18: 5400 | L18: 5400 | M18: 5400 | N18: 64800
A19: Werbekosten | B19: =$N$19/12 -> 2500 | C19: =$N$19/12 -> 2500 | D19: 2500 | E19: 2500 | F19: 2500 | G19: 2500 | H19: 2500 | I19: 2500 | J19: 2500 | K19: 2500 | L19: 2500 | M19: 2500 | N19: 30000
A20: Fahrzeugkosten | B20: =$N$20/12 -> 3333.333333 | C20: 3333.333333 | D20: 3333.333333 | E20: 3333.333333 | F20: 3333.333333 | G20: 3333.333333 | H20: 3333.333333 | I20: 3333.333333 | J20: 3333.333333 | K20: 3333.333333 | L20: 3333.333333 | M20: =$N$20/12 -> 3333.333333 | N20: 40000
A21: Abschreibungen | B21: =$N$21/12 -> 10000 | C21: 10000 | D21: 10000 | E21: 10000 | F21: 10000 | G21: 10000 | H21: 10000 | I21: 10000 | J21: 10000 | K21: 10000 | L21: 10000 | M21: =$N$21/12 -> 10000 | N21: 120000
A22: Gemeinkosten | B22: =$N$22/12 -> 1666.666667 | C22: =$N$22/12 -> 1666.666667 | D22: 1666.666667 | E22: 1666.666667 | F22: 1666.666667 | G22: 1666.666667 | H22: 1666.666667 | I22: 1666.666667 | J22: 1666.666667 | K22: 1666.666667 | L22: 1666.666667 | M22: 1666.666667 | N22: 20000
A23: Deckungsbeitrag | B23: =B16-B17 -> 4245.272 | C23: =C16-C17 -> -677.8 | D23: 5715.356 | E23: 313.652 | F23: 12826.46 | G23: 12108.512 | H23: 313.652 | I23: 3493.136 | J23: 3971.768 | K23: 9852.104 | L23: 8621.336 | M23: 6296.552 | N23: =N16-N17 -> 67080 | P23: DB in % vom Umsatz
A24: Deckungsbeitrag / Stk. | B24: =$N$24 -> 181.2972973 | C24: =$N$24 -> 181.2972973 | D24: 181.2972973 | E24: 181.2972973 | F24: 181.2972973 | G24: 181.2972973 | H24: 181.2972973 | I24: 181.2972973 | J24: 181.2972973 | K24: 181.2972973 | L24: 181.2972973 | M24: 181.2972973 | N24: =N23/N3 -> 181.2972973 | P24: =N23/N4 -> 0.01112253358
P25: Ziel > 3%

Sheet GW
B1: Januar | C1: Februar | D1: März | E1: April | F1: Mai | G1: Juni | H1: Juli | I1: August | J1: September | K1: Oktober | L1: November | M1: Dezember | N1: Gesamt
A2: Saison | B2: 0.0772 | C2: 0.0742 | D2: 0.1276 | E2: 0.0865 | F2: 0.0997 | G2: 0.0858 | H2: 0.0891 | I2: 0.1015 | J2: 0.0515 | K2: 0.0718 | L2: 0.065 | M2: 0.0701 | N2: =SUM(B2:M2) -> 1
A3: GW Stk. | B3: =$N$3*B2 -> 32.424 | C3: =$N$3*C2 -> 31.164 | D3: 53.592 | E3: 36.33 | F3: 41.874 | G3: 36.036 | H3: 37.422 | I3: 42.63 | J3: 21.63 | K3: 30.156 | L3: 27.3 | M3: 29.442 | N3: 420 | Q3: GW pro NW | R3: =N3/NW!N3 -> 1.135135135
A4: Umsatzerlöse | B4: =$N$4*B2 -> 259392 | C4: =$N$4*C2 -> 249312 | D4: 428736 | E4: 290640 | F4: 334992 | G4: 288288 | H4: 299376 | I4: 341040 | J4: 173040 | K4: 241248 | L4: 218400 | M4: 235536 | N4: =N3*N5 -> 3360000 | Q4: inkl. Export!!!
A5: Umsatz / Stk. | B5: =$N$5 -> 8000 | C5: =$N$5 -> 8000 | D5: 8000 | E5: 8000 | F5: 8000 | G5: 8000 | H5: 8000 | I5: 8000 | J5: 8000 | K5: 8000 | L5: 8000 | M5: 8000 | N5: 8000
A6: Einsatzwerte | B6: =$N$6*B2 -> 236046.72 | C6: =$N$6*C2 -> 226873.92 | D6: 390149.76 | E6: 264482.4 | F6: 304842.72 | G6: 262342.08 | H6: 272432.16 | I6: 310346.4 | J6: 157466.4 | K6: 219535.68 | L6: 198744 | M6: 214337.76 | N6: =(N4-N4*O6) -> 3057600 | O6: 0.09 | P6: (BE!!!)
A7: Bruttoertrag | B7: =$N$7*B2 -> 23345.28 | C7: =$N$7*C2 -> 22438.08 | D7: 38586.24 | E7: 26157.6 | F7: 30149.28 | G7: 25945.92 | H7: 26943.84 | I7: 30693.6 | J7: 15573.6 | K7: 21712.32 | L7: 19656 | M7: 21198.24 | N7: =N4-N6 -> 302400
A8: Bruttoertrag / Stk. | B8: =$N$8 -> 720 | C8: =$N$8 -> 720 | D8: 720 | E8: 720 | F8: 720 | G8: 720 | H8: 720 | I8: 720 | J8: 720 | K8: 720 | L8: 720 | M8: 720 | N8: =N7/N3 -> 720
A10: Variable Kosten | B10: =$N$10*B2 -> 9078.72 | C10: =$N$10*C2 -> 8725.92 | D10: 15005.76 | E10: 10172.4 | F10: 11724.72 | G10: 10090.08 | H10: 10478.16 | I10: 11936.4 | J10: 6056.4 | K10: 8443.68 | L10: 7644 | M10: 8243.76 | N10: =N3*R10 -> 117600 | Q10: pro Fzg. | R10: 280
A11: Fixum/Prov./Soz. | B11: =$N$11*B2 -> 6990.6144 | C11: =$N$11*C2 -> 6718.9584 | D11: 11554.4352 | E11: 7832.748 | F11: 9028.0344 | G11: 7769.3616 | H11: 8068.1832 | I11: 9191.028 | J11: 4663.428 | K11: 6501.6336 | L11: 5885.88 | M11: 6347.6952 | N11: =(N10*O11) -> 90552 | O11: 0.77 | P11: =SUM(O11:O15) -> 1
A12: Provisionen | B12: =$N$12*B2 -> 453.936 | C12: =$N$12*C2 -> 436.296 | D12: 750.288 | E12: 508.62 | F12: 586.236 | G12: 504.504 | H12: 523.908 | I12: 596.82 | J12: 302.82 | K12: 422.184 | L12: 382.2 | M12: 412.188 | N12: =N10*O12 -> 5880 | O12: 0.05
A13: Fertigmachen | B13: =$N$13*B2 -> 1271.0208 | C13: =$N$13*C2 -> 1221.6288 | D13: 2100.8064 | E13: 1424.136 | F13: 1641.4608 | G13: 1412.6112 | H13: 1466.9424 | I13: 1671.096 | J13: 847.896 | K13: 1182.1152 | L13: 1070.16 | M13: 1154.1264 | N13: =N10*O13 -> 16464 | O13: 0.14
A14: Kulanz | B14: =$N$14*B2 -> 363.1488 | C14: =$N$14*C2 -> 349.0368 | D14: 600.2304 | E14: 406.896 | F14: 468.9888 | G14: 403.6032 | H14: 419.1264 | I14: 477.456 | J14: 242.256 | K14: 337.7472 | L14: 305.76 | M14: 329.7504 | N14: =N10*O14 -> 4704 | O14: 0.04
A15: sonst. variable Kosten | B15: =$N$15*B2 -> 0 | C15: =$N$15*C2 -> 0 | D15: 0 | E15: 0 | F15: 0 | G15: 0 | H15: 0 | I15: 0 | J15: 0 | K15: 0 | L15: 0 | M15: 0 | N15: =N10*O15 -> 0 | O15: 0
A16: Bruttoertrag II | B16: =$N$16*B2 -> 14266.56 | C16: =$N$16*C2 -> 13712.16 | D16: 23580.48 | E16: 15985.2 | F16: 18424.56 | G16: 15855.84 | H16: 16465.68 | I16: 18757.2 | J16: 9517.2 | K16: 13268.64 | L16: 12012 | M16: 12954.48 | N16: =N7-N10 -> 184800
A17: Direkte Kosten | B17: =$N$17/12 -> 6791.666667 | C17: =$N$17/12 -> 6791.666667 | D17: 6791.666667 | E17: 6791.666667 | F17: 6791.666667 | G17: 6791.666667 | H17: 6791.666667 | I17: 6791.666667 | J17: 6791.666667 | K17: 6791.666667 | L17: 6791.666667 | M17: 6791.666667 | N17: =SUM(N18:N22) -> 81500
A18: Personalkosten | B18: =$N$18/12 -> 5000 | C18: 5000 | D18: 5000 | E18: 5000 | F18: 5000 | G18: 5000 | H18: 5000 | I18: 5000 | J18: 5000 | K18: 5000 | L18: 5000 | M18: =$N$18/12 -> 5000 | N18: 60000 | S18: 43000
A19: Werbekosten | B19: =$N$19/12 -> 83.33333333 | C19: =$N$19/12 -> 83.33333333 | D19: 83.33333333 | E19: 83.33333333 | F19: 83.33333333 | G19: 83.33333333 | H19: 83.33333333 | I19: 83.33333333 | J19: 83.33333333 | K19: 83.33333333 | L19: 83.33333333 | M19: 83.33333333 | N19: 1000 | S19: 3000
A20: Fahrzeugkosten | B20: =$N$20/12 -> 41.66666667 | C20: 41.66666667 | D20: 41.66666667 | E20: 41.66666667 | F20: 41.66666667 | G20: 41.66666667 | H20: 41.66666667 | I20: 41.66666667 | J20: 41.66666667 | K20: 41.66666667 | L20: 41.66666667 | M20: =$N$20/12 -> 41.66666667 | N20: 500 | S20: 500
A21: Abschreibungen | B21: =$N$21/12 -> 0 | C21: =$N$21/12 -> 0 | D21: 0 | E21: 0 | F21: 0 | G21: 0 | H21: 0 | I21: 0 | J21: 0 | K21: 0 | L21: 0 | M21: 0 | N21: 0
A22: Gemeinkosten | B22: =$N$22/12 -> 1666.666667 | C22: =$N$22/12 -> 1666.666667 | D22: 1666.666667 | E22: 1666.666667 | F22: 1666.666667 | G22: 1666.666667 | H22: 1666.666667 | I22: 1666.666667 | J22: 1666.666667 | K22: 1666.666667 | L22: 1666.666667 | M22: 1666.666667 | N22: 20000 | P22: Gebrauchtwagen KPIs
A23: Deckungsbeitrag | B23: =B16-B17 -> 7474.893333 | C23: =C16-C17 -> 6920.493333 | D23: 16788.81333 | E23: 9193.533333 | F23: 11632.89333 | G23: 9064.173333 | H23: 9674.013333 | I23: 11965.53333 | J23: 2725.533333 | K23: 6476.973333 | L23: 5220.333333 | M23: 6162.813333 | N23: =N16-N17 -> 103300 | P23: DB in % vom Umsatz | S23: Umschlag GW | U23: Lagerdauer
A24: Deckungsbeitrag / Stk. | B24: =B23/B3 -> 230.5358171 | C24: =C23/C3 -> 222.0669148 | D24: 313.2708862 | E24: 253.0562437 | F24: 277.807072 | G24: 251.5310615 | H24: 258.5113926 | I24: 280.6833998 | J24: 126.0070889 | K24: 214.7822434 | L24: 191.2210012 | M24: 209.3204719 | N24: =N23/N3 -> 245.952381 | P24: =N23/N4 -> 0.03074404762 | S24: =(N4/S26) -> 4.571428571 | U24: =360/S24 -> 78.75
P25: Ziel > 3% | S25: Ziel: 6 - 8 | U25: Ziel: 45 Tage
S26: 735000
S27: VK vs. VK (!!!)

Sheet Aftersales
B1: Januar | C1: Februar | D1: März | E1: April | F1: Mai | G1: Juni | H1: Juli | I1: August | J1: September | K1: Oktober | L1: November | M1: Dezember | N1: Gesamt
A2: Saison | B2: 0.07242395954 | C2: 0.06394698535 | D2: 0.08797711824 | E2: 0.09373032697 | F2: 0.0784723441 | G2: 0.08604305758 | H2: 0.07640740123 | I2: 0.07947847958 | J2: 0.07253546096 | K2: 0.1029396894 | L2: 0.1004109922 | M2: 0.08563418483 | N2: =SUM(B2:M2) -> 1
A3: verk. Stunden | B3: =$N$3*B2 -> 1377.86583 | C3: =$N$3*C2 -> 1216.591396 | D3: 1673.764674 | E3: 1783.219471 | F3: 1492.936347 | G3: 1636.96917 | H3: 1453.650808 | I3: 1512.078074 | J3: 1379.987145 | K3: 1958.427591 | L3: 1910.319126 | M3: 1629.190366 | N3: =ME!N3+KA!N3+LA!N3+'T&Z'!N3 -> 19025
A4: Umsatzerlöse | B4: =$N$4*B2 -> 271563.1057 | C4: =$N$4*C2 -> 239777.5826 | D4: 329881.7078 | E4: 351454.1162 | F4: 294242.3145 | G4: 322629.6945 | H4: 286499.5412 | I4: 298014.951 | J4: 271981.1949 | K4: 385985.8249 | L4: 376504.1439 | M4: 321096.5727 | N4: =ME!N4+KA!N4+LA!N4+'T&Z'!N4+MW!N3 -> 3749630.75
A5: Umsatz / Stk. | B5: =B4/B3 -> 197.0896583 | C5: =C4/C3 -> 197.0896583 | D5: 197.0896583 | E5: 197.0896583 | F5: 197.0896583 | G5: 197.0896583 | H5: 197.0896583 | I5: 197.0896583 | J5: 197.0896583 | K5: 197.0896583 | L5: 197.0896583 | M5: 197.0896583 | N5: 197.0896583
A6: Einsatzwerte | B6: =$N$6*B2 -> 121545.3783 | C6: =$N$6*C2 -> 107318.9118 | D6: 147647.4386 | E6: 157302.7507 | F6: 131696.0687 | G6: 144401.6048 | H6: 128230.5821 | I6: 133384.6137 | J6: 121732.5053 | K6: 172758.3464 | L6: 168514.5649 | M6: 143715.4148 | N6: =ME!N6+KA!N6+LA!N6+'T&Z'!N5+MW!N4 -> 1678248.18
A7: Bruttoertrag | B7: =$N$7*B2 -> 150017.7275 | C7: =$N$7*C2 -> 132458.6709 | D7: 182234.2693 | E7: 194151.3656 | F7: 162546.2458 | G7: 178228.0897 | H7: 158268.9591 | I7: 164630.3373 | J7: 150248.6895 | K7: 213227.4784 | L7: 207989.579 | M7: 177381.1579 | N7: =N4-N6 -> 2071382.57
A8: Bruttoertrag / Stk. | B8: =B7/B3 -> 108.8768762 | C8: =C7/C3 -> 108.8768762 | D8: 108.8768762 | E8: 108.8768762 | F8: 108.8768762 | G8: 108.8768762 | H8: 108.8768762 | I8: 108.8768762 | J8: 108.8768762 | K8: 108.8768762 | L8: 108.8768762 | M8: 108.8768762 | N8: =N7/N3 -> 108.8768762
A10: Variable Kosten | B10: =$N$10*B2 -> 2933.170362 | C10: =$N$10*C2 -> 2589.852907 | D10: 3563.073289 | E10: 3796.078242 | F10: 3178.129936 | G10: 3484.743832 | H10: 3094.49975 | I10: 3218.878423 | J10: 2937.686169 | K10: 4169.057422 | L10: 4066.645183 | M10: 3468.184486 | N10: =SUM(N11:N15) -> 40500
A11: Fixum/Prov./Soz. | B11: =$N$11*B2 -> 0 | C11: =$N$11*C2 -> 0 | D11: 0 | E11: 0 | F11: 0 | G11: 0 | H11: 0 | I11: 0 | J11: 0 | K11: 0 | L11: 0 | M11: 0 | N11: =ME!N11+KA!N11+LA!N11+'T&Z'!N9+MW!N8 -> 0
A12: Provisionen | B12: =$N$12*B2 -> 0 | C12: =$N$12*C2 -> 0 | D12: 0 | E12: 0 | F12: 0 | G12: 0 | H12: 0 | I12: 0 | J12: 0 | K12: 0 | L12: 0 | M12: 0 | N12: =ME!N12+KA!N12+LA!N12+'T&Z'!N10+MW!N9 -> 0
A13: Fertigmachen | B13: =$N$13*B2 -> 0 | C13: =$N$13*C2 -> 0 | D13: 0 | E13: 0 | F13: 0 | G13: 0 | H13: 0 | I13: 0 | J13: 0 | K13: 0 | L13: 0 | M13: 0 | N13: =ME!N13+KA!N13+LA!N13+'T&Z'!N11+MW!N10 -> 0
A14: Kulanz | B14: =$N$14*B2 -> 2933.170362 | C14: =$N$14*C2 -> 2589.852907 | D14: 3563.073289 | E14: 3796.078242 | F14: 3178.129936 | G14: 3484.743832 | H14: 3094.49975 | I14: 3218.878423 | J14: 2937.686169 | K14: 4169.057422 | L14: 4066.645183 | M14: 3468.184486 | N14: =ME!N14+KA!N14+LA!N14+'T&Z'!N12+MW!N11 -> 40500
A15: sonst. variable Kosten | B15: =$N$15*B2 -> 0 | C15: =$N$15*C2 -> 0 | D15: 0 | E15: 0 | F15: 0 | G15: 0 | H15: 0 | I15: 0 | J15: 0 | K15: 0 | L15: 0 | M15: 0 | N15: =ME!N15+KA!N15+LA!N15+'T&Z'!N13+MW!N12 -> 0
A16: Bruttoertrag II | B16: =$N$16*B2 -> 147084.5571 | C16: =$N$16*C2 -> 129868.818 | D16: 178671.196 | E16: 190355.2873 | F16: 159368.1159 | G16: 174743.3459 | H16: 155174.4594 | I16: 161411.4589 | J16: 147311.0034 | K16: 209058.421 | L16: 203922.9339 | M16: 173912.9734 | N16: =N7-N10 -> 2030882.57
A17: Direkte Kosten | B17: =$N$17/12 -> 84666.66667 | C17: =$N$17/12 -> 84666.66667 | D17: 84666.66667 | E17: 84666.66667 | F17: 84666.66667 | G17: 84666.66667 | H17: 84666.66667 | I17: 84666.66667 | J17: 84666.66667 | K17: 84666.66667 | L17: 84666.66667 | M17: 84666.66667 | N17: =SUM(N18:N22) -> 1016000
A18: Personalkosten | B18: =$N$18/12 -> 67455.625 | C18: =$N$18/12 -> 67455.625 | D18: 67455.625 | E18: 67455.625 | F18: 67455.625 | G18: 67455.625 | H18: 67455.625 | I18: 67455.625 | J18: 67455.625 | K18: 67455.625 | L18: 67455.625 | M18: 67455.625 | N18: =ME!N18+KA!N18+LA!N18+'T&Z'!N16+MW!N15 -> 809467.5
A19: Werbekosten | B19: =$N$19/12 -> 863.5416667 | C19: =$N$19/12 -> 863.5416667 | D19: 863.5416667 | E19: 863.5416667 | F19: 863.5416667 | G19: 863.5416667 | H19: 863.5416667 | I19: 863.5416667 | J19: 863.5416667 | K19: 863.5416667 | L19: 863.5416667 | M19: 863.5416667 | N19: =ME!N19+KA!N19+LA!N19+'T&Z'!N17+MW!N16 -> 10362.5
A20: Fahrzeugkosten | B20: =$N$20/12 -> 2979.166667 | C20: =$N$20/12 -> 2979.166667 | D20: 2979.166667 | E20: 2979.166667 | F20: 2979.166667 | G20: 2979.166667 | H20: 2979.166667 | I20: 2979.166667 | J20: 2979.166667 | K20: 2979.166667 | L20: 2979.166667 | M20: 2979.166667 | N20: =ME!N20+KA!N20+LA!N20+'T&Z'!N18+MW!N17 -> 35750
A21: Abschreibungen | B21: =$N$21/12 -> 3993.75 | C21: =$N$21/12 -> 3993.75 | D21: 3993.75 | E21: 3993.75 | F21: 3993.75 | G21: 3993.75 | H21: 3993.75 | I21: 3993.75 | J21: 3993.75 | K21: 3993.75 | L21: 3993.75 | M21: 3993.75 | N21: =ME!N21+KA!N21+LA!N21+'T&Z'!N19+MW!N18 -> 47925
A22: Gemeinkosten | B22: =$N$22/12 -> 9374.583333 | C22: =$N$22/12 -> 9374.583333 | D22: 9374.583333 | E22: 9374.583333 | F22: 9374.583333 | G22: 9374.583333 | H22: 9374.583333 | I22: 9374.583333 | J22: 9374.583333 | K22: 9374.583333 | L22: 9374.583333 | M22: 9374.583333 | N22: =ME!N22+KA!N22+LA!N22+'T&Z'!N20+MW!N19 -> 112495
A23: Deckungsbeitrag | B23: =B16-B17 -> 62417.89042 | C23: =C16-C17 -> 45202.15129 | D23: 94004.52932 | E23: 105688.6207 | F23: 74701.4492 | G23: 90076.67924 | H23: 70507.79272 | I23: 76744.7922 | J23: 62644.3367 | K23: 124391.7543 | L23: 119256.2672 | M23: 89246.30671 | N23: =N16-N17 -> 1014882.57
A24: Deckungsbeitrag / Stk. | B24: =B23/B3 -> 45.30041246 | C24: =C23/C3 -> 37.15475173 | D24: 56.1635281 | E24: 59.26843129 | F24: 50.03659357 | G24: 55.02649706 | H24: 48.50394077 | I24: 50.75451693 | J24: 45.39486976 | K24: 63.51613657 | L24: 62.42740574 | M24: 54.77954483 | N24: =N23/N3 -> 53.34468173

Sheet Service
B1: Januar | C1: Februar | D1: März | E1: April | F1: Mai | G1: Juni | H1: Juli | I1: August | J1: September | K1: Oktober | L1: November | M1: Dezember | N1: Gesamt
A2: Saison | B2: 0.07242395954 | C2: 0.06394698535 | D2: 0.08797711824 | E2: 0.09373032697 | F2: 0.0784723441 | G2: 0.08604305758 | H2: 0.07640740123 | I2: 0.07947847958 | J2: 0.07253546096 | K2: 0.1029396894 | L2: 0.1004109922 | M2: 0.08563418483 | N2: =SUM(B2:M2) -> 1
A3: verk. Stunden | B3: =$N$3*B2 -> 1377.86583 | C3: =$N$3*C2 -> 1216.591396 | D3: 1673.764674 | E3: 1783.219471 | F3: 1492.936347 | G3: 1636.96917 | H3: 1453.650808 | I3: 1512.078074 | J3: 1379.987145 | K3: 1958.427591 | L3: 1910.319126 | M3: 1629.190366 | N3: =ME!N3+KA!N3+LA!N3 -> 19025
A4: Umsatzerlöse | B4: =$N$4*B2 -> 127446.2522 | C4: =$N$4*C2 -> 112529.1088 | D4: 154815.5344 | E4: 164939.5996 | F4: 138089.7457 | G4: 151412.1195 | H4: 134456.0141 | I4: 139860.2675 | J4: 127642.464 | K4: 181145.545 | L4: 176695.7332 | M4: 150692.6159 | N4: =ME!N4+KA!N4+LA!N4 -> 1759725
A5: Umsatz / Stk. | B5: =B4/B3 -> 92.49540079 | C5: =C4/C3 -> 92.49540079 | D5: 92.49540079 | E5: 92.49540079 | F5: 92.49540079 | G5: 92.49540079 | H5: 92.49540079 | I5: 92.49540079 | J5: 92.49540079 | K5: 92.49540079 | L5: 92.49540079 | M5: 92.49540079 | N5: 92.49540079
A6: Einsatzwerte | B6: =$N$6*B2 -> 34270.18478 | C6: =$N$6*C2 -> 30258.97808 | D6: 41629.76061 | E6: 44352.11283 | F6: 37132.2108 | G6: 40714.58535 | H6: 36155.10358 | I6: 37608.30253 | J6: 34322.94597 | K6: 48709.87723 | L6: 47513.32677 | M6: 40521.11147 | N6: =ME!N6+KA!N6+LA!N6 -> 473188.5
A7: Bruttoertrag | B7: =$N$7*B2 -> 93176.06743 | C7: =$N$7*C2 -> 82270.13072 | D7: 113185.7738 | E7: 120587.4868 | F7: 100957.5349 | G7: 110697.5341 | H7: 98300.91056 | I7: 102251.9649 | J7: 93319.51807 | K7: 132435.6677 | L7: 129182.4064 | M7: 110171.5044 | N7: =N4-N6 -> 1286536.5 | O7: =N7/N4 -> 0.7311008822
A8: Bruttoertrag / Stk. | B8: =B7/B3 -> 67.62346912 | C8: =C7/C3 -> 67.62346912 | D8: 67.62346912 | E8: 67.62346912 | F8: 67.62346912 | G8: 67.62346912 | H8: 67.62346912 | I8: 67.62346912 | J8: 67.62346912 | K8: 67.62346912 | L8: 67.62346912 | M8: 67.62346912 | N8: =N7/N3 -> 67.62346912
A10: Variable Kosten | B10: =$N$10*B2 -> 1738.175029 | C10: =$N$10*C2 -> 1534.727648 | D10: 2111.450838 | E10: 2249.527847 | F10: 1883.336259 | G10: 2065.033382 | H10: 1833.77763 | I10: 1907.48351 | J10: 1740.851063 | K10: 2470.552546 | L10: 2409.863812 | M10: 2055.220436 | N10: =SUM(N11:N15) -> 24000
A11: Fixum/Prov./Soz. | B11: =$N$11*B2 -> 0 | C11: =$N$11*C2 -> 0 | D11: 0 | E11: 0 | F11: 0 | G11: 0 | H11: 0 | I11: 0 | J11: 0 | K11: 0 | L11: 0 | M11: 0 | N11: =ME!N11+KA!N11+LA!N11 -> 0
A12: Provisionen | B12: =$N$12*B2 -> 0 | C12: =$N$12*C2 -> 0 | D12: 0 | E12: 0 | F12: 0 | G12: 0 | H12: 0 | I12: 0 | J12: 0 | K12: 0 | L12: 0 | M12: 0 | N12: =ME!N12+KA!N12+LA!N12 -> 0
A13: Fertigmachen | B13: =$N$13*B2 -> 0 | C13: =$N$13*C2 -> 0 | D13: 0 | E13: 0 | F13: 0 | G13: 0 | H13: 0 | I13: 0 | J13: 0 | K13: 0 | L13: 0 | M13: 0 | N13: =ME!N13+KA!N13+LA!N13 -> 0
A14: Kulanz | B14: =$N$14*B2 -> 1738.175029 | C14: =$N$14*C2 -> 1534.727648 | D14: 2111.450838 | E14: 2249.527847 | F14: 1883.336259 | G14: 2065.033382 | H14: 1833.77763 | I14: 1907.48351 | J14: 1740.851063 | K14: 2470.552546 | L14: 2409.863812 | M14: 2055.220436 | N14: =ME!N14+KA!N14+LA!N14 -> 24000
A15: sonst. variable Kosten | B15: =$N$15*B2 -> 0 | C15: =$N$15*C2 -> 0 | D15: 0 | E15: 0 | F15: 0 | G15: 0 | H15: 0 | I15: 0 | J15: 0 | K15: 0 | L15: 0 | M15: 0 | N15: =ME!N15+KA!N15+LA!N15 -> 0
A16: Bruttoertrag II | B16: =$N$16*B2 -> 91437.8924 | C16: =$N$16*C2 -> 80735.40307 | D16: 111074.3229 | E16: 118337.959 | F16: 99074.19867 | G16: 108632.5008 | H16: 96467.13293 | I16: 100344.4814 | J16: 91578.66701 | K16: 129965.1152 | L16: 126772.5426 | M16: 108116.284 | N16: =N7-N10 -> 1262536.5
A17: Direkte Kosten | B17: =$N$17/12 -> 55500 | C17: =$N$17/12 -> 55500 | D17: 55500 | E17: 55500 | F17: 55500 | G17: 55500 | H17: 55500 | I17: 55500 | J17: 55500 | K17: 55500 | L17: 55500 | M17: 55500 | N17: =SUM(N18:N22) -> 666000
A18: Personalkosten | B18: =$N$18/12 -> 44690 | C18: =$N$18/12 -> 44690 | D18: 44690 | E18: 44690 | F18: 44690 | G18: 44690 | H18: 44690 | I18: 44690 | J18: 44690 | K18: 44690 | L18: 44690 | M18: 44690 | N18: =ME!N18+KA!N18+LA!N18 -> 536280
A19: Werbekosten | B19: =$N$19/12 -> 800 | C19: =$N$19/12 -> 800 | D19: 800 | E19: 800 | F19: 800 | G19: 800 | H19: 800 | I19: 800 | J19: 800 | K19: 800 | L19: 800 | M19: 800 | N19: =ME!N19+KA!N19+LA!N19 -> 9600
A20: Fahrzeugkosten | B20: =$N$20/12 -> 750 | C20: =$N$20/12 -> 750 | D20: 750 | E20: 750 | F20: 750 | G20: 750 | H20: 750 | I20: 750 | J20: 750 | K20: 750 | L20: 750 | M20: 750 | N20: =ME!N20+KA!N20+LA!N20 -> 9000
A21: Abschreibungen | B21: =$N$21/12 -> 0 | C21: =$N$21/12 -> 0 | D21: 0 | E21: 0 | F21: 0 | G21: 0 | H21: 0 | I21: 0 | J21: 0 | K21: 0 | L21: 0 | M21: 0 | N21: =ME!N21+KA!N21+LA!N21 -> 0
A22: Gemeinkosten | B22: =$N$22/12 -> 9260 | C22: =$N$22/12 -> 9260 | D22: 9260 | E22: 9260 | F22: 9260 | G22: 9260 | H22: 9260 | I22: 9260 | J22: 9260 | K22: 9260 | L22: 9260 | M22: 9260 | N22: =ME!N22+KA!N22+LA!N22 -> 111120
A23: Deckungsbeitrag | B23: =B16-B17 -> 35937.8924 | C23: =C16-C17 -> 25235.40307 | D23: 55574.32294 | E23: 62837.95896 | F23: 43574.19867 | G23: 53132.50076 | H23: 40967.13293 | I23: 44844.48143 | J23: 36078.66701 | K23: 74465.1152 | L23: 71272.54263 | M23: 52616.284 | N23: =N16-N17 -> 596536.5
A24: Deckungsbeitrag / Stk. | B24: =B23/B3 -> 26.08228726 | C24: =C23/C3 -> 20.74271045 | D24: 33.20318787 | E24: 35.23848858 | F24: 29.18690993 | G24: 32.4578506 | H24: 28.18223791 | I24: 29.65751716 | J24: 26.14420514 | K24: 38.02290957 | L24: 37.30923365 | M24: 32.29597049 | N24: =N23/N3 -> 31.35540079

Sheet ME
B1: Januar | C1: Februar | D1: März | E1: April | F1: Mai | G1: Juni | H1: Juli | I1: August | J1: September | K1: Oktober | L1: November | M1: Dezember | N1: Gesamt
A2: Saison | B2: 0.059 | C2: 0.0651 | D2: 0.0888 | E2: 0.1115 | F2: 0.0919 | G2: 0.0886 | H2: 0.0717 | I2: 0.0788 | J2: 0.0709 | K2: 0.0986 | L2: 0.1079 | M2: 0.0674 | N2: =SUM(B2:M2) -> 1.0002
A3: verk. Stunden | B3: =$N$3*B2 -> 823.05 | C3: =$N$3*C2 -> 908.145 | D3: 1238.76 | E3: 1555.425 | F3: 1282.005 | G3: 1235.97 | H3: 1000.215 | I3: 1099.26 | J3: 989.055 | K3: 1375.47 | L3: 1505.205 | M3: 940.23 | N3: 13950
A4: Umsatzerlöse | B4: =$N$4*B2 -> 55967.4 | C4: =$N$4*C2 -> 61753.86 | D4: 84235.68 | E4: 105768.9 | F4: 87176.34 | G4: 84045.96 | H4: 68014.62 | I4: 74749.68 | J4: 67255.74 | K4: 93531.96 | L4: 102353.94 | M4: 63935.64 | N4: =N3*N5 -> 948600
A5: Umsatz / Stk. | B5: =$N$5 -> 68 | C5: =$N$5 -> 68 | D5: 68 | E5: 68 | F5: 68 | G5: 68 | H5: 68 | I5: 68 | J5: 68 | K5: 68 | L5: 68 | M5: 68 | N5: 68
A6: Einsatzwerte | B6: =$N$6*B2 -> 13152.339 | C6: =$N$6*C2 -> 14512.1571 | D6: 19795.3848 | E6: 24855.6915 | F6: 20486.4399 | G6: 19750.8006 | H6: 15983.4357 | I6: 17566.1748 | J6: 15805.0989 | K6: 21980.0106 | L6: 24053.1759 | M6: 15024.8754 | N6: =(N4*O6) -> 222921 | O6: 0.235 | P6: (EW!!)
A7: Bruttoertrag | B7: =$N$7*B2 -> 42815.061 | C7: =$N$7*C2 -> 47241.7029 | D7: 64440.2952 | E7: 80913.2085 | F7: 66689.9001 | G7: 64295.1594 | H7: 52031.1843 | I7: 57183.5052 | J7: 51450.6411 | K7: 71551.9494 | L7: 78300.7641 | M7: 48910.7646 | N7: =N4-N6 -> 725679
A8: Bruttoertrag / Stk. | B8: =$N$8 -> 52.02 | C8: =$N$8 -> 52.02 | D8: 52.02 | E8: 52.02 | F8: 52.02 | G8: 52.02 | H8: 52.02 | I8: 52.02 | J8: 52.02 | K8: 52.02 | L8: 52.02 | M8: 52.02 | N8: =N7/N3 -> 52.02
A10: Variable Kosten | B10: =$N$10*B2 -> 1239 | C10: =$N$10*C2 -> 1367.1 | D10: 1864.8 | E10: 2341.5 | F10: 1929.9 | G10: 1860.6 | H10: 1505.7 | I10: 1654.8 | J10: 1488.9 | K10: 2070.6 | L10: 2265.9 | M10: 1415.4 | N10: 21000
A11: Fixum/Prov./Soz. | B11: =$N$11*B2 -> 0 | C11: =$N$11*C2 -> 0 | D11: 0 | E11: 0 | F11: 0 | G11: 0 | H11: 0 | I11: 0 | J11: 0 | K11: 0 | L11: 0 | M11: 0 | N11: =N10*O11 -> 0 | O11: 0 | P11: =SUM(O11:O15) -> 1
A12: Provisionen | B12: =$N$12*B2 -> 0 | C12: =$N$12*C2 -> 0 | D12: 0 | E12: 0 | F12: 0 | G12: 0 | H12: 0 | I12: 0 | J12: 0 | K12: 0 | L12: 0 | M12: 0 | N12: =N10*O12 -> 0 | O12: 0
A13: Fertigmachen | B13: =$N$13*B2 -> 0 | C13: =$N$13*C2 -> 0 | D13: 0 | E13: 0 | F13: 0 | G13: 0 | H13: 0 | I13: 0 | J13: 0 | K13: 0 | L13: 0 | M13: 0 | N13: =N10*O13 -> 0 | O13: 0
A14: Kulanz | B14: =$N$14*B2 -> 1239 | C14: =$N$14*C2 -> 1367.1 | D14: 1864.8 | E14: 2341.5 | F14: 1929.9 | G14: 1860.6 | H14: 1505.7 | I14: 1654.8 | J14: 1488.9 | K14: 2070.6 | L14: 2265.9 | M14: 1415.4 | N14: =N10*O14 -> 21000 | O14: 1
A15: sonst. variable Kosten | B15: =$N$15*B2 -> 0 | C15: =$N$15*C2 -> 0 | D15: 0 | E15: 0 | F15: 0 | G15: 0 | H15: 0 | I15: 0 | J15: 0 | K15: 0 | L15: 0 | M15: 0 | N15: =N10*O15 -> 0 | O15: 0
A16: Bruttoertrag II | B16: =$N$16*B2 -> 41576.061 | C16: =$N$16*C2 -> 45874.6029 | D16: 62575.4952 | E16: 78571.7085 | F16: 64760.0001 | G16: 62434.5594 | H16: 50525.4843 | I16: 55528.7052 | J16: 49961.7411 | K16: 69481.3494 | L16: 76034.8641 | M16: 47495.3646 | N16: =N7-N10 -> 704679 | O16: =N16/N4 -> 0.7428621126 | P16: Ziel > 65%
A17: Direkte Kosten | B17: =$N$17/12 -> 40000 | C17: 40000 | D17: 40000 | E17: 40000 | F17: 40000 | G17: 40000 | H17: 40000 | I17: 40000 | J17: 40000 | K17: 40000 | L17: 40000 | M17: =$N$17/12 -> 40000 | N17: 480000
A18: Personalkosten | B18: =$N$18/12 -> 33800 | C18: 33800 | D18: 33800 | E18: 33800 | F18: 33800 | G18: 33800 | H18: 33800 | I18: 33800 | J18: 33800 | K18: 33800 | L18: 33800 | M18: =$N$18/12 -> 33800 | N18: =$N$17*O18 -> 405600 | O18: 0.845 | P18: =SUM(O18:O22) -> 1
A19: Werbekosten | B19: =$N$19/12 -> 800 | C19: 800 | D19: 800 | E19: 800 | F19: 800 | G19: 800 | H19: 800 | I19: 800 | J19: 800 | K19: 800 | L19: 800 | M19: =$N$19/12 -> 800 | N19: =$N$17*O19 -> 9600 | O19: 0.02
A20: Fahrzeugkosten | B20: =$N$20/12 -> 600 | C20: 600 | D20: 600 | E20: 600 | F20: 600 | G20: 600 | H20: 600 | I20: 600 | J20: 600 | K20: 600 | L20: 600 | M20: =$N$20/12 -> 600 | N20: 7200 | O20: 0.015
A21: Abschreibungen | B21: =$N$21/12 -> 0 | C21: 0 | D21: 0 | E21: 0 | F21: 0 | G21: 0 | H21: 0 | I21: 0 | J21: 0 | K21: 0 | L21: 0 | M21: =$N$21/12 -> 0 | N21: 0 | O21: 0
A22: Gemeinkosten | B22: =$N$22/12 -> 4800 | C22: 4800 | D22: 4800 | E22: 4800 | F22: 4800 | G22: 4800 | H22: 4800 | I22: 4800 | J22: 4800 | K22: 4800 | L22: 4800 | M22: =$N$22/12 -> 4800 | N22: 57600 | O22: 0.12
A23: Deckungsbeitrag | B23: =B16-B17 -> 1576.061 | C23: =C16-C17 -> 5874.6029 | D23: 22575.4952 | E23: 38571.7085 | F23: 24760.0001 | G23: 22434.5594 | H23: 10525.4843 | I23: 15528.7052 | J23: 9961.7411 | K23: 29481.3494 | L23: 36034.8641 | M23: 7495.3646 | N23: =N16-N17 -> 224679
A24: Deckungsbeitrag / Stk. | B24: =$N$24 -> 16.10602151 | C24: =$N$24 -> 16.10602151 | D24: 16.10602151 | E24: 16.10602151 | F24: 16.10602151 | G24: 16.10602151 | H24: 16.10602151 | I24: 16.10602151 | J24: 16.10602151 | K24: 16.10602151 | L24: 16.10602151 | M24: 16.10602151 | N24: =N23/N3 -> 16.10602151

Sheet KA
B1: Januar | C1: Februar | D1: März | E1: April | F1: Mai | G1: Juni | H1: Juli | I1: August | J1: September | K1: Oktober | L1: November | M1: Dezember | N1: Gesamt
A2: Saison | B2: 0.089 | C2: 0.0661 | D2: 0.0781 | E2: 0.0709 | F2: 0.0766 | G2: 0.0661 | H2: 0.0814 | I2: 0.1134 | J2: 0.1128 | K2: 0.0899 | L2: 0.0683 | M2: 0.0874 | N2: =SUM(B2:M2) -> 1
A3: verk. Stunden | B3: =$N$3*B2 -> 249.2 | C3: =$N$3*C2 -> 185.08 | D3: 218.68 | E3: 198.52 | F3: 214.48 | G3: 185.08 | H3: 227.92 | I3: 317.52 | J3: 315.84 | K3: 251.72 | L3: 191.24 | M3: 244.72 | N3: 2800
A4: Umsatzerlöse | B4: =$N$4*B2 -> 28658 | C4: =$N$4*C2 -> 21284.2 | D4: 25148.2 | E4: 22829.8 | F4: 24665.2 | G4: 21284.2 | H4: 26210.8 | I4: 36514.8 | J4: 36321.6 | K4: 28947.8 | L4: 21992.6 | M4: 28142.8 | N4: =N3*N5 -> 322000
A5: Umsatz / Stk. | B5: =$N$5 -> 115 | C5: =$N$5 -> 115 | D5: 115 | E5: 115 | F5: 115 | G5: 115 | H5: 115 | I5: 115 | J5: 115 | K5: 115 | L5: 115 | M5: 115 | N5: 115
A6: Einsatzwerte | B6: =$N$6*B2 -> 5731.6 | C6: =$N$6*C2 -> 4256.84 | D6: 5029.64 | E6: 4565.96 | F6: 4933.04 | G6: 4256.84 | H6: 5242.16 | I6: 7302.96 | J6: 7264.32 | K6: 5789.56 | L6: 4398.52 | M6: 5628.56 | N6: =N4*O6 -> 64400 | O6: 0.2 | P6: (EW!!!)
A7: Bruttoertrag | B7: =$N$7*B2 -> 22926.4 | C7: =$N$7*C2 -> 17027.36 | D7: 20118.56 | E7: 18263.84 | F7: 19732.16 | G7: 17027.36 | H7: 20968.64 | I7: 29211.84 | J7: 29057.28 | K7: 23158.24 | L7: 17594.08 | M7: 22514.24 | N7: =N4-N6 -> 257600
A8: Bruttoertrag / Stk. | B8: =$N$8 -> 92 | C8: =$N$8 -> 92 | D8: 92 | E8: 92 | F8: 92 | G8: 92 | H8: 92 | I8: 92 | J8: 92 | K8: 92 | L8: 92 | M8: 92 | N8: =N7/N3 -> 92
A10: Variable Kosten | B10: =$N$10*B2 -> 160.2 | C10: =$N$10*C2 -> 118.98 | D10: 140.58 | E10: 127.62 | F10: 137.88 | G10: 118.98 | H10: 146.52 | I10: 204.12 | J10: 203.04 | K10: 161.82 | L10: 122.94 | M10: 157.32 | N10: 1800
A11: Fixum/Prov./Soz. | B11: =$N$11*B2 -> 0 | C11: =$N$11*C2 -> 0 | D11: 0 | E11: 0 | F11: 0 | G11: 0 | H11: 0 | I11: 0 | J11: 0 | K11: 0 | L11: 0 | M11: 0 | N11: =N10*O11 -> 0 | O11: 0 | P11: =SUM(O11:O15) -> 1
A12: Provisionen | B12: =$N$12*B2 -> 0 | C12: =$N$12*C2 -> 0 | D12: 0 | E12: 0 | F12: 0 | G12: 0 | H12: 0 | I12: 0 | J12: 0 | K12: 0 | L12: 0 | M12: 0 | N12: =N10*O12 -> 0 | O12: 0
A13: Fertigmachen | B13: =$N$13*B2 -> 0 | C13: =$N$13*C2 -> 0 | D13: 0 | E13: 0 | F13: 0 | G13: 0 | H13: 0 | I13: 0 | J13: 0 | K13: 0 | L13: 0 | M13: 0 | N13: =N10*O13 -> 0 | O13: 0
A14: Kulanz | B14: =$N$14*B2 -> 160.2 | C14: =$N$14*C2 -> 118.98 | D14: 140.58 | E14: 127.62 | F14: 137.88 | G14: 118.98 | H14: 146.52 | I14: 204.12 | J14: 203.04 | K14: 161.82 | L14: 122.94 | M14: 157.32 | N14: =N10*O14 -> 1800 | O14: 1
A15: sonst. variable Kosten | B15: =$N$15*B2 -> 0 | C15: =$N$15*C2 -> 0 | D15: 0 | E15: 0 | F15: 0 | G15: 0 | H15: 0 | I15: 0 | J15: 0 | K15: 0 | L15: 0 | M15: 0 | N15: =N10*O15 -> 0 | O15: 0
A16: Bruttoertrag II | B16: =$N$16*B2 -> 22766.2 | C16: =$N$16*C2 -> 16908.38 | D16: 19977.98 | E16: 18136.22 | F16: 19594.28 | G16: 16908.38 | H16: 20822.12 | I16: 29007.72 | J16: 28854.24 | K16: 22996.42 | L16: 17471.14 | M16: 22356.92 | N16: =N7-N10 -> 255800
A17: Direkte Kosten | B17: =$N$17/12 -> 5500 | C17: =$N$17/12 -> 5500 | D17: 5500 | E17: 5500 | F17: 5500 | G17: 5500 | H17: 5500 | I17: 5500 | J17: 5500 | K17: 5500 | L17: 5500 | M17: 5500 | N17: 66000
A18: Personalkosten | B18: =$N$18/12 -> 4290 | C18: =$N$18/12 -> 4290 | D18: 4290 | E18: 4290 | F18: 4290 | G18: 4290 | H18: 4290 | I18: 4290 | J18: 4290 | K18: 4290 | L18: 4290 | M18: 4290 | N18: =$N$17*O18 -> 51480 | O18: 0.78 | P18: =SUM(O18:O22) -> 1
A19: Werbekosten | B19: =$N$19/12 -> 0 | C19: =$N$19/12 -> 0 | D19: 0 | E19: 0 | F19: 0 | G19: 0 | H19: 0 | I19: 0 | J19: 0 | K19: 0 | L19: 0 | M19: 0 | N19: =$N$17*O19 -> 0 | O19: 0
A20: Fahrzeugkosten | B20: =$N$20/12 -> 0 | C20: =$N$20/12 -> 0 | D20: 0 | E20: 0 | F20: 0 | G20: 0 | H20: 0 | I20: 0 | J20: 0 | K20: 0 | L20: 0 | M20: 0 | N20: 0 | O20: 0
A21: Abschreibungen | B21: =$N$21/12 -> 0 | C21: =$N$21/12 -> 0 | D21: 0 | E21: 0 | F21: 0 | G21: 0 | H21: 0 | I21: 0 | J21: 0 | K21: 0 | L21: 0 | M21: 0 | N21: 0 | O21: 0
A22: Gemeinkosten | B22: =$N$22/12 -> 1210 | C22: =$N$22/12 -> 1210 | D22: 1210 | E22: 1210 | F22: 1210 | G22: 1210 | H22: 1210 | I22: 1210 | J22: 1210 | K22: 1210 | L22: 1210 | M22: 1210 | N22: 14520 | O22: 0.22
A23: Deckungsbeitrag | B23: =B16-B17 -> 17266.2 | C23: =C16-C17 -> 11408.38 | D23: 14477.98 | E23: 12636.22 | F23: 14094.28 | G23: 11408.38 | H23: 15322.12 | I23: 23507.72 | J23: 23354.24 | K23: 17496.42 | L23: 11971.14 | M23: 16856.92 | N23: =N16-N17 -> 189800
A24: Deckungsbeitrag / Stk. | B24: =$N$24 -> 67.78571429 | C24: =$N$24 -> 67.78571429 | D24: 67.78571429 | E24: 67.78571429 | F24: 67.78571429 | G24: 67.78571429 | H24: 67.78571429 | I24: 67.78571429 | J24: 67.78571429 | K24: 67.78571429 | L24: 67.78571429 | M24: 67.78571429 | N24: =N23/N3 -> 67.78571429

Sheet LA
B1: Januar | C1: Februar | D1: März | E1: April | F1: Mai | G1: Juni | H1: Juli | I1: August | J1: September | K1: Oktober | L1: November | M1: Dezember | N1: Gesamt
A2: Saison | B2: 0.0765 | C2: 0.0735 | D2: 0.0855 | E2: 0.0747 | F2: 0.0777 | G2: 0.0865 | H2: 0.0848 | I2: 0.0941 | J2: 0.091 | K2: 0.0765 | L2: 0.0851 | M2: 0.0944 | N2: =SUM(B2:M2) -> 1.0003
A3: verk. Stunden | B3: =$N$3*B2 -> 174.0375 | C3: =$N$3*C2 -> 167.2125 | D3: 194.5125 | E3: 169.9425 | F3: 176.7675 | G3: 196.7875 | H3: 192.92 | I3: 214.0775 | J3: 207.025 | K3: 174.0375 | L3: 193.6025 | M3: 214.76 | N3: 2275
A4: Umsatzerlöse | B4: =$N$4*B2 -> 37418.0625 | C4: =$N$4*C2 -> 35950.6875 | D4: 41820.1875 | E4: 36537.6375 | F4: 38005.0125 | G4: 42309.3125 | H4: 41477.8 | I4: 46026.6625 | J4: 44510.375 | K4: 37418.0625 | L4: 41624.5375 | M4: 46173.4 | N4: =N3*N5 -> 489125
A5: Umsatz / Stk. | B5: =$N$5 -> 215 | C5: =$N$5 -> 215 | D5: 215 | E5: 215 | F5: 215 | G5: 215 | H5: 215 | I5: 215 | J5: 215 | K5: 215 | L5: 215 | M5: =$N$5 -> 215 | N5: 215
A6: Einsatzwerte | B6: =$N$6*B2 -> 14218.86375 | C6: =$N$6*C2 -> 13661.26125 | D6: 15891.67125 | E6: 13884.30225 | F6: 14441.90475 | G6: 16077.53875 | H6: 15761.564 | I6: 17490.13175 | J6: 16913.9425 | K6: 14218.86375 | L6: 15817.32425 | M6: 17545.892 | N6: =N4*O6 -> 185867.5 | O6: 0.38 | P6: (EW!!!)
A7: Bruttoertrag | B7: =$N$7*B2 -> 23199.19875 | C7: =$N$7*C2 -> 22289.42625 | D7: 25928.51625 | E7: 22653.33525 | F7: 23563.10775 | G7: 26231.77375 | H7: 25716.236 | I7: 28536.53075 | J7: 27596.4325 | K7: 23199.19875 | L7: 25807.21325 | M7: 28627.508 | N7: =N4-N6 -> 303257.5
A8: Bruttoertrag / Stk. | B8: =B7/B3 -> 133.3 | C8: 133.3 | D8: 133.3 | E8: 133.3 | F8: 133.3 | G8: 133.3 | H8: 133.3 | I8: 133.3 | J8: 133.3 | K8: 133.3 | L8: 133.3 | M8: 133.3 | N8: =N7/N3 -> 133.3
A10: Variable Kosten | B10: =$N$10*B2 -> 91.8 | C10: =$N$10*C2 -> 88.2 | D10: 102.6 | E10: 89.64 | F10: 93.24 | G10: 103.8 | H10: 101.76 | I10: 112.92 | J10: 109.2 | K10: 91.8 | L10: 102.12 | M10: 113.28 | N10: 1200
A11: Fixum/Prov./Soz. | B11: =$N$11*B2 -> 0 | C11: =$N$11*C2 -> 0 | D11: 0 | E11: 0 | F11: 0 | G11: 0 | H11: 0 | I11: 0 | J11: 0 | K11: 0 | L11: 0 | M11: 0 | N11: =N10*O11 -> 0 | O11: 0 | P11: =SUM(O11:O15) -> 1
A12: Provisionen | B12: =$N$12*B2 -> 0 | C12: =$N$12*C2 -> 0 | D12: 0 | E12: 0 | F12: 0 | G12: 0 | H12: 0 | I12: 0 | J12: 0 | K12: 0 | L12: 0 | M12: 0 | N12: =N10*O12 -> 0 | O12: 0
A13: Fertigmachen | B13: =$N$13*B2 -> 0 | C13: =$N$13*C2 -> 0 | D13: 0 | E13: 0 | F13: 0 | G13: 0 | H13: 0 | I13: 0 | J13: 0 | K13: 0 | L13: 0 | M13: 0 | N13: =N10*O13 -> 0 | O13: 0
A14: Kulanz | B14: =$N$14*B2 -> 91.8 | C14: =$N$14*C2 -> 88.2 | D14: 102.6 | E14: 89.64 | F14: 93.24 | G14: 103.8 | H14: 101.76 | I14: 112.92 | J14: 109.2 | K14: 91.8 | L14: 102.12 | M14: 113.28 | N14: =N10*O14 -> 1200 | O14: 1
A15: sonst. variable Kosten | B15: =$N$15*B2 -> 0 | C15: =$N$15*C2 -> 0 | D15: 0 | E15: 0 | F15: 0 | G15: 0 | H15: 0 | I15: 0 | J15: 0 | K15: 0 | L15: 0 | M15: 0 | N15: =N10*O15 -> 0 | O15: 0
A16: Bruttoertrag II | B16: =$N$16*B2 -> 23107.39875 | C16: =$N$16*C2 -> 22201.22625 | D16: 25825.91625 | E16: 22563.69525 | F16: 23469.86775 | G16: 26127.97375 | H16: 25614.476 | I16: 28423.61075 | J16: 27487.2325 | K16: 23107.39875 | L16: 25705.09325 | M16: 28514.228 | N16: =N7-N10 -> 302057.5
A17: Direkte Kosten | B17: =$N$17/12 -> 10000 | C17: =$N$17/12 -> 10000 | D17: 10000 | E17: 10000 | F17: 10000 | G17: 10000 | H17: 10000 | I17: 10000 | J17: 10000 | K17: 10000 | L17: 10000 | M17: 10000 | N17: 120000
A18: Personalkosten | B18: =$N$18/12 -> 6600 | C18: =$N$18/12 -> 6600 | D18: 6600 | E18: 6600 | F18: 6600 | G18: 6600 | H18: 6600 | I18: 6600 | J18: 6600 | K18: 6600 | L18: 6600 | M18: 6600 | N18: =$N$17*O18 -> 79200 | O18: 0.66 | P18: =SUM(O18:O22) -> 1
A19: Werbekosten | B19: =$N$19/12 -> 0 | C19: =$N$19/12 -> 0 | D19: 0 | E19: 0 | F19: 0 | G19: 0 | H19: 0 | I19: 0 | J19: 0 | K19: 0 | L19: 0 | M19: 0 | N19: =$N$17*O19 -> 0 | O19: 0
A20: Fahrzeugkosten | B20: =$N$20/12 -> 150 | C20: =$N$20/12 -> 150 | D20: 150 | E20: 150 | F20: 150 | G20: 150 | H20: 150 | I20: 150 | J20: 150 | K20: 150 | L20: 150 | M20: 150 | N20: 1800 | O20: 0.015
A21: Abschreibungen | B21: =$N$21/12 -> 0 | C21: =$N$21/12 -> 0 | D21: 0 | E21: 0 | F21: 0 | G21: 0 | H21: 0 | I21: 0 | J21: 0 | K21: 0 | L21: 0 | M21: 0 | N21: 0 | O21: 0
A22: Gemeinkosten | B22: =$N$22/12 -> 3250 | C22: =$N$22/12 -> 3250 | D22: 3250 | E22: 3250 | F22: 3250 | G22: 3250 | H22: 3250 | I22: 3250 | J22: 3250 | K22: 3250 | L22: 3250 | M22: 3250 | N22: 39000 | O22: 0.325
A23: Deckungsbeitrag | B23: =B16-B17 -> 13107.39875 | C23: =C16-C17 -> 12201.22625 | D23: 15825.91625 | E23: 12563.69525 | F23: 13469.86775 | G23: 16127.97375 | H23: 15614.476 | I23: 18423.61075 | J23: 17487.2325 | K23: 13107.39875 | L23: 15705.09325 | M23: 18514.228 | N23: =N16-N17 -> 182057.5
A24: Deckungsbeitrag / Stk. | B24: =B23/B3 -> 75.31364648 | C24: 72.96838604 | D24: 81.36194975 | E24: 73.92909514 | F24: 76.20104233 | G24: 81.95629169 | H24: 80.93756998 | I24: 86.06047226 | J24: 84.46918247 | K24: 75.31364648 | L24: 81.12030191 | M24: 86.20892159 | N24: =N23/N3 -> 80.02527473

Sheet T&Z
B1: Januar | C1: Februar | D1: März | E1: April | F1: Mai | G1: Juni | H1: Juli | I1: August | J1: September | K1: Oktober | L1: November | M1: Dezember | N1: Gesamt
A2: Saison | B2: 0.071 | C2: 0.0667 | D2: 0.08797711824 | E2: 0.085 | F2: 0.084 | G2: 0.0773 | H2: 0.0739 | I2: 0.0849 | J2: 0.0738 | K2: 0.0919 | L2: 0.1132 | M2: 0.0903 | N2: =SUM(B2:M2) -> 0.9999771182
A3: verk. Stunden | B3: =$N$3*B2*$O$3 -> 0 | C3: =$N$3*C2 -> 0 | D3: 0 | E3: 0 | F3: 0 | G3: 0 | H3: 0 | I3: 0 | J3: 0 | K3: 0 | L3: 0 | M3: 0 | N3: 0
A4: Umsatzerlöse | B4: =$N$4*B2 -> 133686.3083 | C4: =$N$4*C2 -> 125589.8135 | D4: 165652.6218 | E4: 160046.9888 | F4: 158164.083 | G4: 145548.6145 | H4: 139146.7349 | I4: 159858.6982 | J4: 138958.4444 | K4: 173039.0384 | L4: 213144.9309 | M4: 170026.3892 | N4: =(ME!N4+KA!N4+LA!N4)*S4 -> 1882905.75 | R4: Faktor Umsatz ME+KA+LA | S4: 1.07
A5: Einsatzwerte | B5: =$N$5*B2 -> 85559.23728 | C5: 80377.48066 | D5: 106017.678 | E5: 102430.0728 | F5: 101225.0131 | G5: 93151.11326 | H5: 89053.91035 | I5: 102309.5668 | J5: 88933.40438 | K5: 110744.9846 | L5: 136412.7558 | M5: 108816.8891 | N5: =N4*(O5) -> 1205059.68 | O5: 0.64 | P5: (EW!!!)
A6: Bruttoertrag | B6: =$N$6*B2 -> 48127.07097 | C6: 45212.33287 | D6: 59634.94385 | E6: 57616.91595 | F6: 56939.06988 | G6: 52397.50121 | H6: 50092.82457 | I6: 57549.13134 | J6: 50025.03997 | K6: 62294.05383 | L6: 76732.17512 | M6: 61209.50012 | N6: =N4-N5 -> 677846.07
A8: Variable Kosten | B8: =$N$8*B2 -> 1171.5 | C8: 1100.55 | D8: 1451.622451 | E8: 1402.5 | F8: 1386 | G8: 1275.45 | H8: 1219.35 | I8: 1400.85 | J8: 1217.7 | K8: 1516.35 | L8: 1867.8 | M8: 1489.95 | N8: 16500
A9: Fixum/Prov./Soz. | B9: =$N$9*B2 -> 0 | C9: 0 | D9: 0 | E9: 0 | F9: 0 | G9: 0 | H9: 0 | I9: 0 | J9: 0 | K9: 0 | L9: 0 | M9: 0 | N9: =N8*O9 -> 0 | O9: 0 | P9: =SUM(O9:O13) -> 1
A10: Provisionen | B10: =$N$10*B2 -> 0 | C10: 0 | D10: 0 | E10: 0 | F10: 0 | G10: 0 | H10: 0 | I10: 0 | J10: 0 | K10: 0 | L10: 0 | M10: 0 | N10: =N8*O10 -> 0 | O10: 0
A11: Fertigmachen | B11: =$N$11*B2 -> 0 | C11: 0 | D11: 0 | E11: 0 | F11: 0 | G11: 0 | H11: 0 | I11: 0 | J11: 0 | K11: 0 | L11: 0 | M11: 0 | N11: =N8*O11 -> 0 | O11: 0
A12: Kulanz | B12: =$N$12*B2 -> 1171.5 | C12: 1100.55 | D12: 1451.622451 | E12: 1402.5 | F12: 1386 | G12: 1275.45 | H12: 1219.35 | I12: 1400.85 | J12: 1217.7 | K12: 1516.35 | L12: 1867.8 | M12: 1489.95 | N12: =N8*O12 -> 16500 | O12: 1
A13: sonst. variable Kosten | B13: =$N$13*B2 -> 0 | C13: 0 | D13: 0 | E13: 0 | F13: 0 | G13: 0 | H13: 0 | I13: 0 | J13: 0 | K13: 0 | L13: 0 | M13: 0 | N13: =N8*O13 -> 0 | O13: 0
A14: Bruttoertrag II | B14: =$N$14*B2 -> 46955.57097 | C14: 44111.78287 | D14: 58183.3214 | E14: 56214.41595 | F14: 55553.06988 | G14: 51122.05121 | H14: 48873.47457 | I14: 56148.28134 | J14: 48807.33997 | K14: 60777.70383 | L14: 74864.37512 | M14: 59719.55012 | N14: =N6-N8 -> 661346.07
A15: Direkte Kosten | B15: =$N$15/12 -> 22916.66667 | C15: =$N$15/12 -> 22916.66667 | D15: 22916.66667 | E15: 22916.66667 | F15: 22916.66667 | G15: 22916.66667 | H15: 22916.66667 | I15: 22916.66667 | J15: 22916.66667 | K15: 22916.66667 | L15: 22916.66667 | M15: 22916.66667 | N15: 275000
A16: Personalkosten | B16: =$N$16/12 -> 22515.625 | C16: =$N$16/12 -> 22515.625 | D16: 22515.625 | E16: 22515.625 | F16: 22515.625 | G16: 22515.625 | H16: 22515.625 | I16: 22515.625 | J16: 22515.625 | K16: 22515.625 | L16: 22515.625 | M16: 22515.625 | N16: =$N$15*O16 -> 270187.5 | O16: 0.9825 | P16: =SUM(O16:O20) -> 1
A17: Werbekosten | B17: =$N$17/12 -> 57.29166667 | C17: =$N$17/12 -> 57.29166667 | D17: 57.29166667 | E17: 57.29166667 | F17: 57.29166667 | G17: 57.29166667 | H17: 57.29166667 | I17: 57.29166667 | J17: 57.29166667 | K17: 57.29166667 | L17: 57.29166667 | M17: 57.29166667 | N17: =$N$15*O17 -> 687.5 | O17: 0.0025
A18: Fahrzeugkosten | B18: =$N$18/12 -> 229.1666667 | C18: =$N$18/12 -> 229.1666667 | D18: 229.1666667 | E18: 229.1666667 | F18: 229.1666667 | G18: 229.1666667 | H18: 229.1666667 | I18: 229.1666667 | J18: 229.1666667 | K18: 229.1666667 | L18: 229.1666667 | M18: 229.1666667 | N18: 2750 | O18: 0.01
A19: Abschreibungen | B19: =$N$19/12 -> 0 | C19: =$N$19/12 -> 0 | D19: 0 | E19: 0 | F19: 0 | G19: 0 | H19: 0 | I19: 0 | J19: 0 | K19: 0 | L19: 0 | M19: 0 | N19: 0 | O19: 0
A20: Gemeinkosten | B20: =$N$20/12 -> 114.5833333 | C20: =$N$20/12 -> 114.5833333 | D20: 114.5833333 | E20: 114.5833333 | F20: 114.5833333 | G20: 114.5833333 | H20: 114.5833333 | I20: 114.5833333 | J20: 114.5833333 | K20: 114.5833333 | L20: 114.5833333 | M20: 114.5833333 | N20: 1375 | O20: 0.005
A21: Deckungsbeitrag | B21: =B14-B15 -> 24038.9043 | C21: =C14-C15 -> 21195.1162 | D21: 35266.65473 | E21: 33297.74928 | F21: 32636.40321 | G21: 28205.38454 | H21: 25956.80791 | I21: 33231.61468 | J21: 25890.6733 | K21: 37861.03717 | L21: 51947.70846 | M21: 36802.88345 | N21: =N14-N15 -> 386346.07

Sheet MW
B1: Januar | C1: Februar | D1: März | E1: April | F1: Mai | G1: Juni | H1: Juli | I1: August | J1: September | K1: Oktober | L1: November | M1: Dezember | N1: Gesamt
A2: Saison | B2: 0.0786 | C2: 0.0753 | D2: 0.0994 | E2: 0.0679 | F2: 0.0884 | G2: 0.093 | H2: 0.0797 | I2: 0.0794 | J2: 0.075 | K2: 0.0728 | L2: 0.0891 | M2: 0.1014 | N2: =SUM(B2:M2) -> 1
A3: Umsatzerlöse | B3: =$N$3*B2 -> 8410.2 | C3: 8057.1 | D3: 10635.8 | E3: 7265.3 | F3: 9458.8 | G3: 9951 | H3: 8527.9 | I3: 8495.8 | J3: 8025 | K3: 7789.6 | L3: 9533.7 | M3: 10849.8 | N3: 107000
A4: Einsatzwerte | B4: =$N$4*B2 -> 0 | C4: 0 | D4: 0 | E4: 0 | F4: 0 | G4: 0 | H4: 0 | I4: 0 | J4: 0 | K4: 0 | L4: 0 | M4: 0 | N4: 0 | O4: =N4/N3 -> 0
A5: Bruttoertrag | B5: =$N$5*B2 -> 8410.2 | C5: 8057.1 | D5: 10635.8 | E5: 7265.3 | F5: 9458.8 | G5: 9951 | H5: 8527.9 | I5: 8495.8 | J5: 8025 | K5: 7789.6 | L5: 9533.7 | M5: 10849.8 | N5: =N3-N4 -> 107000
A7: Variable Kosten | B7: =$N$7*B2 -> 0 | C7: 0 | D7: 0 | E7: 0 | F7: 0 | G7: 0 | H7: 0 | I7: 0 | J7: 0 | K7: 0 | L7: 0 | M7: 0 | N7: 0
A8: Fixum/Prov./Soz. | B8: =$N$8*B2 -> 0 | C8: 0 | D8: 0 | E8: 0 | F8: 0 | G8: 0 | H8: 0 | I8: 0 | J8: 0 | K8: 0 | L8: 0 | M8: 0 | N8: =N7*O8 -> 0 | O8: 0 | P8: =SUM(O8:O12) -> 1
A9: Provisionen | B9: =$N$9*B2 -> 0 | C9: 0 | D9: 0 | E9: 0 | F9: 0 | G9: 0 | H9: 0 | I9: 0 | J9: 0 | K9: 0 | L9: 0 | M9: 0 | N9: =N7*O9 -> 0 | O9: 0
A10: Fertigmachen | B10: =$N$10*B2 -> 0 | C10: 0 | D10: 0 | E10: 0 | F10: 0 | G10: 0 | H10: 0 | I10: 0 | J10: 0 | K10: 0 | L10: 0 | M10: 0 | N10: =N7*O10 -> 0 | O10: 0
A11: Kulanz | B11: =$N$11*B2 -> 0 | C11: 0 | D11: 0 | E11: 0 | F11: 0 | G11: 0 | H11: 0 | I11: 0 | J11: 0 | K11: 0 | L11: 0 | M11: 0 | N11: =N7*O11 -> 0 | O11: 1
A12: sonst. variable Kosten | B12: =$N$12*B2 -> 0 | C12: 0 | D12: 0 | E12: 0 | F12: 0 | G12: 0 | H12: 0 | I12: 0 | J12: 0 | K12: 0 | L12: 0 | M12: 0 | N12: =N7*O12 -> 0 | O12: 0
A13: Bruttoertrag II | B13: =$N$13*B2 -> 8410.2 | C13: 8057.1 | D13: 10635.8 | E13: 7265.3 | F13: 9458.8 | G13: 9951 | H13: 8527.9 | I13: 8495.8 | J13: 8025 | K13: 7789.6 | L13: 9533.7 | M13: 10849.8 | N13: =N5-N7 -> 107000
A14: Direkte Kosten | B14: =$N$14/12 -> 6250 | C14: =$N$14/12 -> 6250 | D14: 6250 | E14: 6250 | F14: 6250 | G14: 6250 | H14: 6250 | I14: 6250 | J14: 6250 | K14: 6250 | L14: 6250 | M14: 6250 | N14: 75000
A15: Personalkosten | B15: =$N$15/12 -> 250 | C15: =$N$15/12 -> 250 | D15: 250 | E15: 250 | F15: 250 | G15: 250 | H15: 250 | I15: 250 | J15: 250 | K15: 250 | L15: 250 | M15: 250 | N15: =$N$14*O15 -> 3000 | O15: 0.04 | P15: =SUM(O15:O19) -> 1
A16: Werbekosten | B16: =$N$16/12 -> 6.25 | C16: =$N$16/12 -> 6.25 | D16: 6.25 | E16: 6.25 | F16: 6.25 | G16: 6.25 | H16: 6.25 | I16: 6.25 | J16: 6.25 | K16: 6.25 | L16: 6.25 | M16: 6.25 | N16: =$N$14*O16 -> 75 | O16: 0.001
A17: Fahrzeugkosten | B17: =$N$17/12 -> 2000 | C17: =$N$17/12 -> 2000 | D17: 2000 | E17: 2000 | F17: 2000 | G17: 2000 | H17: 2000 | I17: 2000 | J17: 2000 | K17: 2000 | L17: 2000 | M17: 2000 | N17: 24000 | O17: 0.32
A18: Abschreibungen | B18: =$N$18/12 -> 3993.75 | C18: =$N$18/12 -> 3993.75 | D18: 3993.75 | E18: 3993.75 | F18: 3993.75 | G18: 3993.75 | H18: 3993.75 | I18: 3993.75 | J18: 3993.75 | K18: 3993.75 | L18: 3993.75 | M18: 3993.75 | N18: 47925 | O18: 0.639
A19: Gemeinkosten | B19: =$N$19/12 -> 0 | C19: =$N$19/12 -> 0 | D19: 0 | E19: 0 | F19: 0 | G19: 0 | H19: 0 | I19: 0 | J19: 0 | K19: 0 | L19: 0 | M19: 0 | N19: 0 | O19: 0
A20: Deckungsbeitrag | B20: =B13-B14 -> 2160.2 | C20: =C13-C14 -> 1807.1 | D20: 4385.8 | E20: 1015.3 | F20: 3208.8 | G20: 3701 | H20: 2277.9 | I20: 2245.8 | J20: 1775 | K20: 1539.6 | L20: 3283.7 | M20: 4599.8 | N20: =N13-N14 -> 32000

Sheet ---
B1: 2015
A2: Neuwagen Stk. | B2: 306
A3: Gebrauchtwagen Stk. | B3: 606
A4: Service AW gesamt | B4: 11325
A5: Umsatzerlöse | B5: 11519122
A6: Einsatzwerte | B6: 9474183
A7: Bruttoertrag | B7: 2044939
A8: Variable Kosten | B8: 285820
A9: Fixum/Prov./Soz. | B9: 179615
A10: Provisionen | B10: 13635
A11: Fertigmachen | B11: 6546
A12: Kulanz | B12: 45336
A13: sonst. variable Kosten | B13: 40689
A14: Bruttoertrag II | B14: 1759119
A15: Direkte Kosten | B15: 959551
A16: Personalkosten | B16: 633343
A17: Werbekosten | B17: 99873
A18: Fahrzeugkosten | B18: 96610
A19: Abschreibungen | B19: 112436
A20: Gemeinkosten | B20: 17289
A21: Deckungsbeitrag | B21: 799568
A22: Indirekte Kosten | B22: 989126
A23: Personalkosten | B23: 301363
A24: Werbekosten | B24: 79480
A25: Fahrzeugkosten | B25: 13295
A26: Abschreibungen | B26: 15165
A27: Gemeinkosten | B27: 269217
A28: Raumkosten | B28: 195634
A29: Kalk. Kosten | B29: 114972
A30: Betriebsergebnis | B30: -189558
A31: Neutrales Ergebnis | B31: 12107
A32: Unternehmenserg. | B32: -177451

Sheet Planung_2018
A1: Rechtseinheit | B1: Betrieb | C1: Bookkeep Date | D1: Kostenstelle | E1: Ebene1 | F1: Ebene2 | G1: Ebene3 | H1: Marke | I1: Wert1 | J1: Wert2 | K1: Wert3 | L1: Wert4 | M1: Wert5 | N1: Wert6 | O1: Wert7 | P1: Wert8 | Q1: Wert9 | R1: Wert10 | S1: Wert11 | T1: Wert12
A2: 1 | B2: 01 | C2: 2018 | D2: 1 | E2: verkaufte Stückzahlen | F2: VE Neuwagen | H2: 1 | I2: =NW!B3 -> 29.378 | J2: =NW!C3 -> 24.05 | K2: =NW!D3 -> 30.969 | L2: =NW!E3 -> 25.123 | M2: =NW!F3 -> 38.665 | N2: =NW!G3 -> 37.888 | O2: =NW!H3 -> 25.123 | P2: =NW!I3 -> 28.564 | Q2: =NW!J3 -> 29.082 | R2: =NW!K3 -> 35.446 | S2: =NW!L3 -> 34.114 | T2: =NW!M3 -> 31.598
A3: 1 | B3: 01 | C3: 2018 | D3: 1 | E3: Umsatzerlöse | F3: VE Neuwagen | H3: 1 | I3: =NW!B4*-1 -> -478861.4 | J3: =NW!C4*-1 -> -392015 | K3: =NW!D4*-1 -> -504794.7 | L3: =NW!E4*-1 -> -409504.9 | M3: =NW!F4*-1 -> -630239.5 | N3: =NW!G4*-1 -> -617574.4 | O3: =NW!H4*-1 -> -409504.9 | P3: =NW!I4*-1 -> -465593.2 | Q3: =NW!J4*-1 -> -474036.6 | R3: =NW!K4*-1 -> -577769.8 | S3: =NW!L4*-1 -> -556058.2 | T3: =NW!M4*-1 -> -515047.4
A4: 1 | B4: 01 | C4: 2018 | D4: 1 | E4: Einsatzwerte | F4: EW Neuwagen | H4: 1 | I4: =NW!B6 -> 440552.488 | J4: =NW!C6 -> 360653.8 | K4: =NW!D6 -> 464411.124 | L4: =NW!E6 -> 376744.508 | M4: =NW!F6 -> 579820.34 | N4: =NW!G6 -> 568168.448 | O4: =NW!H6 -> 376744.508 | P4: =NW!I6 -> 428345.744 | Q4: =NW!J6 -> 436113.672 | R4: =NW!K6 -> 531548.216 | S4: =NW!L6 -> 511573.544 | T4: =NW!M6 -> 473843.608
A5: 1 | B5: 01 | C5: 2018 | D5: 1 | E5: Kosten | F5: Variable Kosten | G5: Fixum/Prov./Soz. | H5: 1 | I5: =NW!B11 -> 9489.094 | J5: =NW!C11 -> 7768.15 | K5: =NW!D11 -> 10002.987 | L5: =NW!E11 -> 8114.729 | M5: =NW!F11 -> 12488.795 | N5: =NW!G11 -> 12237.824 | O5: =NW!H11 -> 8114.729 | P5: =NW!I11 -> 9226.172 | Q5: =NW!J11 -> 9393.486 | R5: =NW!K11 -> 11449.058 | S5: =NW!L11 -> 11018.822 | T5: =NW!M11 -> 10206.154
A6: 1 | B6: 01 | C6: 2018 | D6: 1 | E6: Kosten | F6: Variable Kosten | G6: Provisionen | H6: 1 | I6: =NW!B12 -> 558.182 | J6: =NW!C12 -> 456.95 | K6: =NW!D12 -> 588.411 | L6: =NW!E12 -> 477.337 | M6: =NW!F12 -> 734.635 | N6: =NW!G12 -> 719.872 | O6: =NW!H12 -> 477.337 | P6: =NW!I12 -> 542.716 | Q6: =NW!J12 -> 552.558 | R6: =NW!K12 -> 673.474 | S6: =NW!L12 -> 648.166 | T6: =NW!M12 -> 600.362
A7: 1 | B7: 01 | C7: 2018 | D7: 1 | E7: Kosten | F7: Variable Kosten | G7: Fertigmachen | H7: 1 | I7: =NW!B13 -> 893.0912 | J7: =NW!C13 -> 731.12 | K7: =NW!D13 -> 941.4576 | L7: =NW!E13 -> 763.7392 | M7: =NW!F13 -> 1175.416 | N7: =NW!G13 -> 1151.7952 | O7: =NW!H13 -> 763.7392 | P7: =NW!I13 -> 868.3456 | Q7: =NW!J13 -> 884.0928 | R7: =NW!K13 -> 1077.5584 | S7: =NW!L13 -> 1037.0656 | T7: =NW!M13 -> 960.5792
A8: 1 | B8: 01 | C8: 2018 | D8: 1 | E8: Kosten | F8: Variable Kosten | G8: Kulanz | H8: 1 | I8: =NW!B14 -> 223.2728 | J8: =NW!C14 -> 182.78 | K8: =NW!D14 -> 235.3644 | L8: =NW!E14 -> 190.9348 | M8: =NW!F14 -> 293.854 | N8: =NW!G14 -> 287.9488 | O8: =NW!H14 -> 190.9348 | P8: =NW!I14 -> 217.0864 | Q8: =NW!J14 -> 221.0232 | R8: =NW!K14 -> 269.3896 | S8: =NW!L14 -> 259.2664 | T8: =NW!M14 -> 240.1448
A9: 1 | B9: 01 | C9: 2018 | D9: 1 | E9: Kosten | F9: Variable Kosten | G9: sonst. variable Kosten | H9: 1 | I9: =NW!B15 -> 0 | J9: =NW!C15 -> 0 | K9: =NW!D15 -> 0 | L9: =NW!E15 -> 0 | M9: =NW!F15 -> 0 | N9: =NW!G15 -> 0 | O9: =NW!H15 -> 0 | P9: =NW!I15 -> 0 | Q9: =NW!J15 -> 0 | R9: =NW!K15 -> 0 | S9: =NW!L15 -> 0 | T9: =NW!M15 -> 0
A10: 1 | B10: 01 | C10: 2018 | D10: 1 | E10: Kosten | F10: Direkte Kosten | G10: Personalkosten | H10: 1 | I10: =NW!B18 -> 5400 | J10: =NW!C18 -> 5400 | K10: =NW!D18 -> 5400 | L10: =NW!E18 -> 5400 | M10: =NW!F18 -> 5400 | N10: =NW!G18 -> 5400 | O10: =NW!H18 -> 5400 | P10: =NW!I18 -> 5400 | Q10: =NW!J18 -> 5400 | R10: =NW!K18 -> 5400 | S10: =NW!L18 -> 5400 | T10: =NW!M18 -> 5400
A11: 1 | B11: 01 | C11: 2018 | D11: 1 | E11: Kosten | F11: Direkte Kosten | G11: Werbekosten | H11: 1 | I11: =NW!B19 -> 2500 | J11: =NW!C19 -> 2500 | K11: =NW!D19 -> 2500 | L11: =NW!E19 -> 2500 | M11: =NW!F19 -> 2500 | N11: =NW!G19 -> 2500 | O11: =NW!H19 -> 2500 | P11: =NW!I19 -> 2500 | Q11: =NW!J19 -> 2500 | R11: =NW!K19 -> 2500 | S11: =NW!L19 -> 2500 | T11: =NW!M19 -> 2500
A12: 1 | B12: 01 | C12: 2018 | D12: 1 | E12: Kosten | F12: Direkte Kosten | G12: Fahrzeugkosten | H12: 1 | I12: =NW!B20 -> 3333.333333 | J12: =NW!C20 -> 3333.333333 | K12: =NW!D20 -> 3333.333333 | L12: =NW!E20 -> 3333.333333 | M12: =NW!F20 -> 3333.333333 | N12: =NW!G20 -> 3333.333333 | O12: =NW!H20 -> 3333.333333 | P12: =NW!I20 -> 3333.333333 | Q12: =NW!J20 -> 3333.333333 | R12: =NW!K20 -> 3333.333333 | S12: =NW!L20 -> 3333.333333 | T12: =NW!M20 -> 3333.333333
A13: 1 | B13: 01 | C13: 2018 | D13: 1 | E13: Kosten | F13: Direkte Kosten | G13: Abschreibungen | H13: 1 | I13: =NW!B21 -> 10000 | J13: =NW!C21 -> 10000 | K13: =NW!D21 -> 10000 | L13: =NW!E21 -> 10000 | M13: =NW!F21 -> 10000 | N13: =NW!G21 -> 10000 | O13: =NW!H21 -> 10000 | P13: =NW!I21 -> 10000 | Q13: =NW!J21 -> 10000 | R13: =NW!K21 -> 10000 | S13: =NW!L21 -> 10000 | T13: =NW!M21 -> 10000
A14: 1 | B14: 01 | C14: 2018 | D14: 1 | E14: Kosten | F14: Direkte Kosten | G14: Gemeinkosten | H14: 1 | I14: =NW!B22 -> 1666.666667 | J14: =NW!C22 -> 1666.666667 | K14: =NW!D22 -> 1666.666667 | L14: =NW!E22 -> 1666.666667 | M14: =NW!F22 -> 1666.666667 | N14: =NW!G22 -> 1666.666667 | O14: =NW!H22 -> 1666.666667 | P14: =NW!I22 -> 1666.666667 | Q14: =NW!J22 -> 1666.666667 | R14: =NW!K22 -> 1666.666667 | S14: =NW!L22 -> 1666.666667 | T14: =NW!M22 -> 1666.666667
A15: 1 | B15: 01 | C15: 2018 | D15: 2 | E15: verkaufte Stückzahlen | F15: VE Gebrauchtwagen | H15: 1 | I15: =GW!B3 -> 32.424 | J15: =GW!C3 -> 31.164 | K15: =GW!D3 -> 53.592 | L15: =GW!E3 -> 36.33 | M15: =GW!F3 -> 41.874 | N15: =GW!G3 -> 36.036 | O15: =GW!H3 -> 37.422 | P15: =GW!I3 -> 42.63 | Q15: =GW!J3 -> 21.63 | R15: =GW!K3 -> 30.156 | S15: =GW!L3 -> 27.3 | T15: =GW!M3 -> 29.442
A16: 1 | B16: 01 | C16: 2018 | D16: 2 | E16: Umsatzerlöse | F16: VE Gebrauchtwagen | H16: 1 | I16: =GW!B4*-1 -> -259392 | J16: =GW!C4*-1 -> -249312 | K16: =GW!D4*-1 -> -428736 | L16: =GW!E4*-1 -> -290640 | M16: =GW!F4*-1 -> -334992 | N16: =GW!G4*-1 -> -288288 | O16: =GW!H4*-1 -> -299376 | P16: =GW!I4*-1 -> -341040 | Q16: =GW!J4*-1 -> -173040 | R16: =GW!K4*-1 -> -241248 | S16: =GW!L4*-1 -> -218400 | T16: =GW!M4*-1 -> -235536
A17: 1 | B17: 01 | C17: 2018 | D17: 2 | E17: Einsatzwerte | F17: EW Gebrauchtwagen | H17: 1 | I17: =GW!B6 -> 236046.72 | J17: =GW!C6 -> 226873.92 | K17: =GW!D6 -> 390149.76 | L17: =GW!E6 -> 264482.4 | M17: =GW!F6 -> 304842.72 | N17: =GW!G6 -> 262342.08 | O17: =GW!H6 -> 272432.16 | P17: =GW!I6 -> 310346.4 | Q17: =GW!J6 -> 157466.4 | R17: =GW!K6 -> 219535.68 | S17: =GW!L6 -> 198744 | T17: =GW!M6 -> 214337.76
A18: 1 | B18: 01 | C18: 2018 | D18: 2 | E18: Kosten | F18: Variable Kosten | G18: Fixum/Prov./Soz. | H18: 1 | I18: =GW!B11 -> 6990.6144 | J18: =GW!C11 -> 6718.9584 | K18: =GW!D11 -> 11554.4352 | L18: =GW!E11 -> 7832.748 | M18: =GW!F11 -> 9028.0344 | N18: =GW!G11 -> 7769.3616 | O18: =GW!H11 -> 8068.1832 | P18: =GW!I11 -> 9191.028 | Q18: =GW!J11 -> 4663.428 | R18: =GW!K11 -> 6501.6336 | S18: =GW!L11 -> 5885.88 | T18: =GW!M11 -> 6347.6952
A19: 1 | B19: 01 | C19: 2018 | D19: 2 | E19: Kosten | F19: Variable Kosten | G19: Provisionen | H19: 1 | I19: =GW!B12 -> 453.936 | J19: =GW!C12 -> 436.296 | K19: =GW!D12 -> 750.288 | L19: =GW!E12 -> 508.62 | M19: =GW!F12 -> 586.236 | N19: =GW!G12 -> 504.504 | O19: =GW!H12 -> 523.908 | P19: =GW!I12 -> 596.82 | Q19: =GW!J12 -> 302.82 | R19: =GW!K12 -> 422.184 | S19: =GW!L12 -> 382.2 | T19: =GW!M12 -> 412.188
A20: 1 | B20: 01 | C20: 2018 | D20: 2 | E20: Kosten | F20: Variable Kosten | G20: Fertigmachen | H20: 1 | I20: =GW!B13 -> 1271.0208 | J20: =GW!C13 -> 1221.6288 | K20: =GW!D13 -> 2100.8064 | L20: =GW!E13 -> 1424.136 | M20: =GW!F13 -> 1641.4608 | N20: =GW!G13 -> 1412.6112 | O20: =GW!H13 -> 1466.9424 | P20: =GW!I13 -> 1671.096 | Q20: =GW!J13 -> 847.896 | R20: =GW!K13 -> 1182.1152 | S20: =GW!L13 -> 1070.16 | T20: =GW!M13 -> 1154.1264
A21: 1 | B21: 01 | C21: 2018 | D21: 2 | E21: Kosten | F21: Variable Kosten | G21: Kulanz | H21: 1 | I21: =GW!B14 -> 363.1488 | J21: =GW!C14 -> 349.0368 | K21: =GW!D14 -> 600.2304 | L21: =GW!E14 -> 406.896 | M21: =GW!F14 -> 468.9888 | N21: =GW!G14 -> 403.6032 | O21: =GW!H14 -> 419.1264 | P21: =GW!I14 -> 477.456 | Q21: =GW!J14 -> 242.256 | R21: =GW!K14 -> 337.7472 | S21: =GW!L14 -> 305.76 | T21: =GW!M14 -> 329.7504
A22: 1 | B22: 01 | C22: 2018 | D22: 2 | E22: Kosten | F22: Variable Kosten | G22: sonst. variable Kosten | H22: 1 | I22: =GW!B15 -> 0 | J22: =GW!C15 -> 0 | K22: =GW!D15 -> 0 | L22: =GW!E15 -> 0 | M22: =GW!F15 -> 0 | N22: =GW!G15 -> 0 | O22: =GW!H15 -> 0 | P22: =GW!I15 -> 0 | Q22: =GW!J15 -> 0 | R22: =GW!K15 -> 0 | S22: =GW!L15 -> 0 | T22: =GW!M15 -> 0
A23: 1 | B23: 01 | C23: 2018 | D23: 2 | E23: Kosten | F23: Direkte Kosten | G23: Personalkosten | H23: 1 | I23: =GW!B18 -> 5000 | J23: =GW!C18 -> 5000 | K23: =GW!D18 -> 5000 | L23: =GW!E18 -> 5000 | M23: =GW!F18 -> 5000 | N23: =GW!G18 -> 5000 | O23: =GW!H18 -> 5000 | P23: =GW!I18 -> 5000 | Q23: =GW!J18 -> 5000 | R23: =GW!K18 -> 5000 | S23: =GW!L18 -> 5000 | T23: =GW!M18 -> 5000
A24: 1 | B24: 01 | C24: 2018 | D24: 2 | E24: Kosten | F24: Direkte Kosten | G24: Werbekosten | H24: 1 | I24: =GW!B19 -> 83.33333333 | J24: =GW!C19 -> 83.33333333 | K24: =GW!D19 -> 83.33333333 | L24: =GW!E19 -> 83.33333333 | M24: =GW!F19 -> 83.33333333 | N24: =GW!G19 -> 83.33333333 | O24: =GW!H19 -> 83.33333333 | P24: =GW!I19 -> 83.33333333 | Q24: =GW!J19 -> 83.33333333 | R24: =GW!K19 -> 83.33333333 | S24: =GW!L19 -> 83.33333333 | T24: =GW!M19 -> 83.33333333
A25: 1 | B25: 01 | C25: 2018 | D25: 2 | E25: Kosten | F25: Direkte Kosten | G25: Fahrzeugkosten | H25: 1 | I25: =GW!B20 -> 41.66666667 | J25: =GW!C20 -> 41.66666667 | K25: =GW!D20 -> 41.66666667 | L25: =GW!E20 -> 41.66666667 | M25: =GW!F20 -> 41.66666667 | N25: =GW!G20 -> 41.66666667 | O25: =GW!H20 -> 41.66666667 | P25: =GW!I20 -> 41.66666667 | Q25: =GW!J20 -> 41.66666667 | R25: =GW!K20 -> 41.66666667 | S25: =GW!L20 -> 41.66666667 | T25: =GW!M20 -> 41.66666667
A26: 1 | B26: 01 | C26: 2018 | D26: 2 | E26: Kosten | F26: Direkte Kosten | G26: Abschreibungen | H26: 1 | I26: =GW!B21 -> 0 | J26: =GW!C21 -> 0 | K26: =GW!D21 -> 0 | L26: =GW!E21 -> 0 | M26: =GW!F21 -> 0 | N26: =GW!G21 -> 0 | O26: =GW!H21 -> 0 | P26: =GW!I21 -> 0 | Q26: =GW!J21 -> 0 | R26: =GW!K21 -> 0 | S26: =GW!L21 -> 0 | T26: =GW!M21 -> 0
A27: 1 | B27: 01 | C27: 2018 | D27: 2 | E27: Kosten | F27: Direkte Kosten | G27: Gemeinkosten | H27: 1 | I27: =GW!B22 -> 1666.666667 | J27: =GW!C22 -> 1666.666667 | K27: =GW!D22 -> 1666.666667 | L27: =GW!E22 -> 1666.666667 | M27: =GW!F22 -> 1666.666667 | N27: =GW!G22 -> 1666.666667 | O27: =GW!H22 -> 1666.666667 | P27: =GW!I22 -> 1666.666667 | Q27: =GW!J22 -> 1666.666667 | R27: =GW!K22 -> 1666.666667 | S27: =GW!L22 -> 1666.666667 | T27: =GW!M22 -> 1666.666667
A28: 1 | B28: 01 | C28: 2018 | D28: 3 | E28: verkaufte Stückzahlen | F28: VE Service | G28: VE Mechanik | H28: 1 | I28: =ME!B3 -> 823.05 | J28: =ME!C3 -> 908.145 | K28: =ME!D3 -> 1238.76 | L28: =ME!E3 -> 1555.425 | M28: =ME!F3 -> 1282.005 | N28: =ME!G3 -> 1235.97 | O28: =ME!H3 -> 1000.215 | P28: =ME!I3 -> 1099.26 | Q28: =ME!J3 -> 989.055 | R28: =ME!K3 -> 1375.47 | S28: =ME!L3 -> 1505.205 | T28: =ME!M3 -> 940.23
A29: 1 | B29: 01 | C29: 2018 | D29: 3 | E29: Umsatzerlöse | F29: VE Service | G29: VE Mechanik | H29: 1 | I29: =ME!B4*-1 -> -55967.4 | J29: =ME!C4*-1 -> -61753.86 | K29: =ME!D4*-1 -> -84235.68 | L29: =ME!E4*-1 -> -105768.9 | M29: =ME!F4*-1 -> -87176.34 | N29: =ME!G4*-1 -> -84045.96 | O29: =ME!H4*-1 -> -68014.62 | P29: =ME!I4*-1 -> -74749.68 | Q29: =ME!J4*-1 -> -67255.74 | R29: =ME!K4*-1 -> -93531.96 | S29: =ME!L4*-1 -> -102353.94 | T29: =ME!M4*-1 -> -63935.64
A30: 1 | B30: 01 | C30: 2018 | D30: 3 | E30: Einsatzwerte | F30: EW Service | G30: EW Mechanik | H30: 1 | I30: =ME!B6 -> 13152.339 | J30: =ME!C6 -> 14512.1571 | K30: =ME!D6 -> 19795.3848 | L30: =ME!E6 -> 24855.6915 | M30: =ME!F6 -> 20486.4399 | N30: =ME!G6 -> 19750.8006 | O30: =ME!H6 -> 15983.4357 | P30: =ME!I6 -> 17566.1748 | Q30: =ME!J6 -> 15805.0989 | R30: =ME!K6 -> 21980.0106 | S30: =ME!L6 -> 24053.1759 | T30: =ME!M6 -> 15024.8754
A31: 1 | B31: 01 | C31: 2018 | D31: 3 | E31: Kosten | F31: Variable Kosten | G31: Fixum/Prov./Soz. | H31: 1 | I31: =ME!B11 -> 0 | J31: =ME!C11 -> 0 | K31: =ME!D11 -> 0 | L31: =ME!E11 -> 0 | M31: =ME!F11 -> 0 | N31: =ME!G11 -> 0 | O31: =ME!H11 -> 0 | P31: =ME!I11 -> 0 | Q31: =ME!J11 -> 0 | R31: =ME!K11 -> 0 | S31: =ME!L11 -> 0 | T31: =ME!M11 -> 0
A32: 1 | B32: 01 | C32: 2018 | D32: 3 | E32: Kosten | F32: Variable Kosten | G32: Provisionen | H32: 1 | I32: =ME!B12 -> 0 | J32: =ME!C12 -> 0 | K32: =ME!D12 -> 0 | L32: =ME!E12 -> 0 | M32: =ME!F12 -> 0 | N32: =ME!G12 -> 0 | O32: =ME!H12 -> 0 | P32: =ME!I12 -> 0 | Q32: =ME!J12 -> 0 | R32: =ME!K12 -> 0 | S32: =ME!L12 -> 0 | T32: =ME!M12 -> 0
A33: 1 | B33: 01 | C33: 2018 | D33: 3 | E33: Kosten | F33: Variable Kosten | G33: Fertigmachen | H33: 1 | I33: =ME!B13 -> 0 | J33: =ME!C13 -> 0 | K33: =ME!D13 -> 0 | L33: =ME!E13 -> 0 | M33: =ME!F13 -> 0 | N33: =ME!G13 -> 0 | O33: =ME!H13 -> 0 | P33: =ME!I13 -> 0 | Q33: =ME!J13 -> 0 | R33: =ME!K13 -> 0 | S33: =ME!L13 -> 0 | T33: =ME!M13 -> 0
A34: 1 | B34: 01 | C34: 2018 | D34: 3 | E34: Kosten | F34: Variable Kosten | G34: Kulanz | H34: 1 | I34: =ME!B14 -> 1239 | J34: =ME!C14 -> 1367.1 | K34: =ME!D14 -> 1864.8 | L34: =ME!E14 -> 2341.5 | M34: =ME!F14 -> 1929.9 | N34: =ME!G14 -> 1860.6 | O34: =ME!H14 -> 1505.7 | P34: =ME!I14 -> 1654.8 | Q34: =ME!J14 -> 1488.9 | R34: =ME!K14 -> 2070.6 | S34: =ME!L14 -> 2265.9 | T34: =ME!M14 -> 1415.4
A35: 1 | B35: 01 | C35: 2018 | D35: 3 | E35: Kosten | F35: Variable Kosten | G35: sonst. variable Kosten | H35: 1 | I35: =ME!B15 -> 0 | J35: =ME!C15 -> 0 | K35: =ME!D15 -> 0 | L35: =ME!E15 -> 0 | M35: =ME!F15 -> 0 | N35: =ME!G15 -> 0 | O35: =ME!H15 -> 0 | P35: =ME!I15 -> 0 | Q35: =ME!J15 -> 0 | R35: =ME!K15 -> 0 | S35: =ME!L15 -> 0 | T35: =ME!M15 -> 0
A36: 1 | B36: 01 | C36: 2018 | D36: 3 | E36: Kosten | F36: Direkte Kosten | G36: Personalkosten | H36: 1 | I36: =ME!B18 -> 33800 | J36: =ME!C18 -> 33800 | K36: =ME!D18 -> 33800 | L36: =ME!E18 -> 33800 | M36: =ME!F18 -> 33800 | N36: =ME!G18 -> 33800 | O36: =ME!H18 -> 33800 | P36: =ME!I18 -> 33800 | Q36: =ME!J18 -> 33800 | R36: =ME!K18 -> 33800 | S36: =ME!L18 -> 33800 | T36: =ME!M18 -> 33800
A37: 1 | B37: 01 | C37: 2018 | D37: 3 | E37: Kosten | F37: Direkte Kosten | G37: Werbekosten | H37: 1 | I37: =ME!B19 -> 800 | J37: =ME!C19 -> 800 | K37: =ME!D19 -> 800 | L37: =ME!E19 -> 800 | M37: =ME!F19 -> 800 | N37: =ME!G19 -> 800 | O37: =ME!H19 -> 800 | P37: =ME!I19 -> 800 | Q37: =ME!J19 -> 800 | R37: =ME!K19 -> 800 | S37: =ME!L19 -> 800 | T37: =ME!M19 -> 800
A38: 1 | B38: 01 | C38: 2018 | D38: 3 | E38: Kosten | F38: Direkte Kosten | G38: Fahrzeugkosten | H38: 1 | I38: =ME!B20 -> 600 | J38: =ME!C20 -> 600 | K38: =ME!D20 -> 600 | L38: =ME!E20 -> 600 | M38: =ME!F20 -> 600 | N38: =ME!G20 -> 600 | O38: =ME!H20 -> 600 | P38: =ME!I20 -> 600 | Q38: =ME!J20 -> 600 | R38: =ME!K20 -> 600 | S38: =ME!L20 -> 600 | T38: =ME!M20 -> 600
A39: 1 | B39: 01 | C39: 2018 | D39: 3 | E39: Kosten | F39: Direkte Kosten | G39: Abschreibungen | H39: 1 | I39: =ME!B21 -> 0 | J39: =ME!C21 -> 0 | K39: =ME!D21 -> 0 | L39: =ME!E21 -> 0 | M39: =ME!F21 -> 0 | N39: =ME!G21 -> 0 | O39: =ME!H21 -> 0 | P39: =ME!I21 -> 0 | Q39: =ME!J21 -> 0 | R39: =ME!K21 -> 0 | S39: =ME!L21 -> 0 | T39: =ME!M21 -> 0
A40: 1 | B40: 01 | C40: 2018 | D40: 3 | E40: Kosten | F40: Direkte Kosten | G40: Gemeinkosten | H40: 1 | I40: =ME!B22 -> 4800 | J40: =ME!C22 -> 4800 | K40: =ME!D22 -> 4800 | L40: =ME!E22 -> 4800 | M40: =ME!F22 -> 4800 | N40: =ME!G22 -> 4800 | O40: =ME!H22 -> 4800 | P40: =ME!I22 -> 4800 | Q40: =ME!J22 -> 4800 | R40: =ME!K22 -> 4800 | S40: =ME!L22 -> 4800 | T40: =ME!M22 -> 4800
A41: 1 | B41: 01 | C41: 2018 | D41: 4 | E41: verkaufte Stückzahlen | F41: VE Service | G41: VE Karosserie | H41: 1 | I41: =KA!B3 -> 249.2 | J41: =KA!C3 -> 185.08 | K41: =KA!D3 -> 218.68 | L41: =KA!E3 -> 198.52 | M41: =KA!F3 -> 214.48 | N41: =KA!G3 -> 185.08 | O41: =KA!H3 -> 227.92 | P41: =KA!I3 -> 317.52 | Q41: =KA!J3 -> 315.84 | R41: =KA!K3 -> 251.72 | S41: =KA!L3 -> 191.24 | T41: =KA!M3 -> 244.72
A42: 1 | B42: 01 | C42: 2018 | D42: 4 | E42: Umsatzerlöse | F42: VE Service | G42: VE Karosserie | H42: 1 | I42: =KA!B4*-1 -> -28658 | J42: =KA!C4*-1 -> -21284.2 | K42: =KA!D4*-1 -> -25148.2 | L42: =KA!E4*-1 -> -22829.8 | M42: =KA!F4*-1 -> -24665.2 | N42: =KA!G4*-1 -> -21284.2 | O42: =KA!H4*-1 -> -26210.8 | P42: =KA!I4*-1 -> -36514.8 | Q42: =KA!J4*-1 -> -36321.6 | R42: =KA!K4*-1 -> -28947.8 | S42: =KA!L4*-1 -> -21992.6 | T42: =KA!M4*-1 -> -28142.8
A43: 1 | B43: 01 | C43: 2018 | D43: 4 | E43: Einsatzwerte | F43: EW Service | G43: EW Karosserie | H43: 1 | I43: =KA!B6 -> 5731.6 | J43: =KA!C6 -> 4256.84 | K43: =KA!D6 -> 5029.64 | L43: =KA!E6 -> 4565.96 | M43: =KA!F6 -> 4933.04 | N43: =KA!G6 -> 4256.84 | O43: =KA!H6 -> 5242.16 | P43: =KA!I6 -> 7302.96 | Q43: =KA!J6 -> 7264.32 | R43: =KA!K6 -> 5789.56 | S43: =KA!L6 -> 4398.52 | T43: =KA!M6 -> 5628.56
A44: 1 | B44: 01 | C44: 2018 | D44: 4 | E44: Kosten | F44: Variable Kosten | G44: Fixum/Prov./Soz. | H44: 1 | I44: =KA!B11 -> 0 | J44: =KA!C11 -> 0 | K44: =KA!D11 -> 0 | L44: =KA!E11 -> 0 | M44: =KA!F11 -> 0 | N44: =KA!G11 -> 0 | O44: =KA!H11 -> 0 | P44: =KA!I11 -> 0 | Q44: =KA!J11 -> 0 | R44: =KA!K11 -> 0 | S44: =KA!L11 -> 0 | T44: =KA!M11 -> 0
A45: 1 | B45: 01 | C45: 2018 | D45: 4 | E45: Kosten | F45: Variable Kosten | G45: Provisionen | H45: 1 | I45: =KA!B12 -> 0 | J45: =KA!C12 -> 0 | K45: =KA!D12 -> 0 | L45: =KA!E12 -> 0 | M45: =KA!F12 -> 0 | N45: =KA!G12 -> 0 | O45: =KA!H12 -> 0 | P45: =KA!I12 -> 0 | Q45: =KA!J12 -> 0 | R45: =KA!K12 -> 0 | S45: =KA!L12 -> 0 | T45: =KA!M12 -> 0
A46: 1 | B46: 01 | C46: 2018 | D46: 4 | E46: Kosten | F46: Variable Kosten | G46: Fertigmachen | H46: 1 | I46: =KA!B13 -> 0 | J46: =KA!C13 -> 0 | K46: =KA!D13 -> 0 | L46: =KA!E13 -> 0 | M46: =KA!F13 -> 0 | N46: =KA!G13 -> 0 | O46: =KA!H13 -> 0 | P46: =KA!I13 -> 0 | Q46: =KA!J13 -> 0 | R46: =KA!K13 -> 0 | S46: =KA!L13 -> 0 | T46: =KA!M13 -> 0
A47: 1 | B47: 01 | C47: 2018 | D47: 4 | E47: Kosten | F47: Variable Kosten | G47: Kulanz | H47: 1 | I47: =KA!B14 -> 160.2 | J47: =KA!C14 -> 118.98 | K47: =KA!D14 -> 140.58 | L47: =KA!E14 -> 127.62 | M47: =KA!F14 -> 137.88 | N47: =KA!G14 -> 118.98 | O47: =KA!H14 -> 146.52 | P47: =KA!I14 -> 204.12 | Q47: =KA!J14 -> 203.04 | R47: =KA!K14 -> 161.82 | S47: =KA!L14 -> 122.94 | T47: =KA!M14 -> 157.32
A48: 1 | B48: 01 | C48: 2018 | D48: 4 | E48: Kosten | F48: Variable Kosten | G48: sonst. variable Kosten | H48: 1 | I48: =KA!B15 -> 0 | J48: =KA!C15 -> 0 | K48: =KA!D15 -> 0 | L48: =KA!E15 -> 0 | M48: =KA!F15 -> 0 | N48: =KA!G15 -> 0 | O48: =KA!H15 -> 0 | P48: =KA!I15 -> 0 | Q48: =KA!J15 -> 0 | R48: =KA!K15 -> 0 | S48: =KA!L15 -> 0 | T48: =KA!M15 -> 0
A49: 1 | B49: 01 | C49: 2018 | D49: 4 | E49: Kosten | F49: Direkte Kosten | G49: Personalkosten | H49: 1 | I49: =KA!B18 -> 4290 | J49: =KA!C18 -> 4290 | K49: =KA!D18 -> 4290 | L49: =KA!E18 -> 4290 | M49: =KA!F18 -> 4290 | N49: =KA!G18 -> 4290 | O49: =KA!H18 -> 4290 | P49: =KA!I18 -> 4290 | Q49: =KA!J18 -> 4290 | R49: =KA!K18 -> 4290 | S49: =KA!L18 -> 4290 | T49: =KA!M18 -> 4290
A50: 1 | B50: 01 | C50: 2018 | D50: 4 | E50: Kosten | F50: Direkte Kosten | G50: Werbekosten | H50: 1 | I50: =KA!B19 -> 0 | J50: =KA!C19 -> 0 | K50: =KA!D19 -> 0 | L50: =KA!E19 -> 0 | M50: =KA!F19 -> 0 | N50: =KA!G19 -> 0 | O50: =KA!H19 -> 0 | P50: =KA!I19 -> 0 | Q50: =KA!J19 -> 0 | R50: =KA!K19 -> 0 | S50: =KA!L19 -> 0 | T50: =KA!M19 -> 0
A51: 1 | B51: 01 | C51: 2018 | D51: 4 | E51: Kosten | F51: Direkte Kosten | G51: Fahrzeugkosten | H51: 1 | I51: =KA!B20 -> 0 | J51: =KA!C20 -> 0 | K51: =KA!D20 -> 0 | L51: =KA!E20 -> 0 | M51: =KA!F20 -> 0 | N51: =KA!G20 -> 0 | O51: =KA!H20 -> 0 | P51: =KA!I20 -> 0 | Q51: =KA!J20 -> 0 | R51: =KA!K20 -> 0 | S51: =KA!L20 -> 0 | T51: =KA!M20 -> 0
A52: 1 | B52: 01 | C52: 2018 | D52: 4 | E52: Kosten | F52: Direkte Kosten | G52: Abschreibungen | H52: 1 | I52: =KA!B21 -> 0 | J52: =KA!C21 -> 0 | K52: =KA!D21 -> 0 | L52: =KA!E21 -> 0 | M52: =KA!F21 -> 0 | N52: =KA!G21 -> 0 | O52: =KA!H21 -> 0 | P52: =KA!I21 -> 0 | Q52: =KA!J21 -> 0 | R52: =KA!K21 -> 0 | S52: =KA!L21 -> 0 | T52: =KA!M21 -> 0
A53: 1 | B53: 01 | C53: 2018 | D53: 4 | E53: Kosten | F53: Direkte Kosten | G53: Gemeinkosten | H53: 1 | I53: =KA!B22 -> 1210 | J53: =KA!C22 -> 1210 | K53: =KA!D22 -> 1210 | L53: =KA!E22 -> 1210 | M53: =KA!F22 -> 1210 | N53: =KA!G22 -> 1210 | O53: =KA!H22 -> 1210 | P53: =KA!I22 -> 1210 | Q53: =KA!J22 -> 1210 | R53: =KA!K22 -> 1210 | S53: =KA!L22 -> 1210 | T53: =KA!M22 -> 1210
A54: 1 | B54: 01 | C54: 2018 | D54: 5 | E54: verkaufte Stückzahlen | F54: VE Service | G54: VE Lackiererei | H54: 1 | I54: =LA!B3 -> 174.0375 | J54: =LA!C3 -> 167.2125 | K54: =LA!D3 -> 194.5125 | L54: =LA!E3 -> 169.9425 | M54: =LA!F3 -> 176.7675 | N54: =LA!G3 -> 196.7875 | O54: =LA!H3 -> 192.92 | P54: =LA!I3 -> 214.0775 | Q54: =LA!J3 -> 207.025 | R54: =LA!K3 -> 174.0375 | S54: =LA!L3 -> 193.6025 | T54: =LA!M3 -> 214.76
A55: 1 | B55: 01 | C55: 2018 | D55: 5 | E55: Umsatzerlöse | F55: VE Service | G55: VE Lackiererei | H55: 1 | I55: =LA!B4*-1 -> -37418.0625 | J55: =LA!C4*-1 -> -35950.6875 | K55: =LA!D4*-1 -> -41820.1875 | L55: =LA!E4*-1 -> -36537.6375 | M55: =LA!F4*-1 -> -38005.0125 | N55: =LA!G4*-1 -> -42309.3125 | O55: =LA!H4*-1 -> -41477.8 | P55: =LA!I4*-1 -> -46026.6625 | Q55: =LA!J4*-1 -> -44510.375 | R55: =LA!K4*-1 -> -37418.0625 | S55: =LA!L4*-1 -> -41624.5375 | T55: =LA!M4*-1 -> -46173.4
A56: 1 | B56: 01 | C56: 2018 | D56: 5 | E56: Einsatzwerte | F56: EW Service | G56: EW Lackiererei | H56: 1 | I56: =LA!B6 -> 14218.86375 | J56: =LA!C6 -> 13661.26125 | K56: =LA!D6 -> 15891.67125 | L56: =LA!E6 -> 13884.30225 | M56: =LA!F6 -> 14441.90475 | N56: =LA!G6 -> 16077.53875 | O56: =LA!H6 -> 15761.564 | P56: =LA!I6 -> 17490.13175 | Q56: =LA!J6 -> 16913.9425 | R56: =LA!K6 -> 14218.86375 | S56: =LA!L6 -> 15817.32425 | T56: =LA!M6 -> 17545.892
A57: 1 | B57: 01 | C57: 2018 | D57: 5 | E57: Kosten | F57: Variable Kosten | G57: Fixum/Prov./Soz. | H57: 1 | I57: =LA!B11 -> 0 | J57: =LA!C11 -> 0 | K57: =LA!D11 -> 0 | L57: =LA!E11 -> 0 | M57: =LA!F11 -> 0 | N57: =LA!G11 -> 0 | O57: =LA!H11 -> 0 | P57: =LA!I11 -> 0 | Q57: =LA!J11 -> 0 | R57: =LA!K11 -> 0 | S57: =LA!L11 -> 0 | T57: =LA!M11 -> 0
A58: 1 | B58: 01 | C58: 2018 | D58: 5 | E58: Kosten | F58: Variable Kosten | G58: Provisionen | H58: 1 | I58: =LA!B12 -> 0 | J58: =LA!C12 -> 0 | K58: =LA!D12 -> 0 | L58: =LA!E12 -> 0 | M58: =LA!F12 -> 0 | N58: =LA!G12 -> 0 | O58: =LA!H12 -> 0 | P58: =LA!I12 -> 0 | Q58: =LA!J12 -> 0 | R58: =LA!K12 -> 0 | S58: =LA!L12 -> 0 | T58: =LA!M12 -> 0
A59: 1 | B59: 01 | C59: 2018 | D59: 5 | E59: Kosten | F59: Variable Kosten | G59: Fertigmachen | H59: 1 | I59: =LA!B13 -> 0 | J59: =LA!C13 -> 0 | K59: =LA!D13 -> 0 | L59: =LA!E13 -> 0 | M59: =LA!F13 -> 0 | N59: =LA!G13 -> 0 | O59: =LA!H13 -> 0 | P59: =LA!I13 -> 0 | Q59: =LA!J13 -> 0 | R59: =LA!K13 -> 0 | S59: =LA!L13 -> 0 | T59: =LA!M13 -> 0
A60: 1 | B60: 01 | C60: 2018 | D60: 5 | E60: Kosten | F60: Variable Kosten | G60: Kulanz | H60: 1 | I60: =LA!B14 -> 91.8 | J60: =LA!C14 -> 88.2 | K60: =LA!D14 -> 102.6 | L60: =LA!E14 -> 89.64 | M60: =LA!F14 -> 93.24 | N60: =LA!G14 -> 103.8 | O60: =LA!H14 -> 101.76 | P60: =LA!I14 -> 112.92 | Q60: =LA!J14 -> 109.2 | R60: =LA!K14 -> 91.8 | S60: =LA!L14 -> 102.12 | T60: =LA!M14 -> 113.28
A61: 1 | B61: 01 | C61: 2018 | D61: 5 | E61: Kosten | F61: Variable Kosten | G61: sonst. variable Kosten | H61: 1 | I61: =LA!B15 -> 0 | J61: =LA!C15 -> 0 | K61: =LA!D15 -> 0 | L61: =LA!E15 -> 0 | M61: =LA!F15 -> 0 | N61: =LA!G15 -> 0 | O61: =LA!H15 -> 0 | P61: =LA!I15 -> 0 | Q61: =LA!J15 -> 0 | R61: =LA!K15 -> 0 | S61: =LA!L15 -> 0 | T61: =LA!M15 -> 0
A62: 1 | B62: 01 | C62: 2018 | D62: 5 | E62: Kosten | F62: Direkte Kosten | G62: Personalkosten | H62: 1 | I62: =LA!B18 -> 6600 | J62: =LA!C18 -> 6600 | K62: =LA!D18 -> 6600 | L62: =LA!E18 -> 6600 | M62: =LA!F18 -> 6600 | N62: =LA!G18 -> 6600 | O62: =LA!H18 -> 6600 | P62: =LA!I18 -> 6600 | Q62: =LA!J18 -> 6600 | R62: =LA!K18 -> 6600 | S62: =LA!L18 -> 6600 | T62: =LA!M18 -> 6600
A63: 1 | B63: 01 | C63: 2018 | D63: 5 | E63: Kosten | F63: Direkte Kosten | G63: Werbekosten | H63: 1 | I63: =LA!B19 -> 0 | J63: =LA!C19 -> 0 | K63: =LA!D19 -> 0 | L63: =LA!E19 -> 0 | M63: =LA!F19 -> 0 | N63: =LA!G19 -> 0 | O63: =LA!H19 -> 0 | P63: =LA!I19 -> 0 | Q63: =LA!J19 -> 0 | R63: =LA!K19 -> 0 | S63: =LA!L19 -> 0 | T63: =LA!M19 -> 0
A64: 1 | B64: 01 | C64: 2018 | D64: 5 | E64: Kosten | F64: Direkte Kosten | G64: Fahrzeugkosten | H64: 1 | I64: =LA!B20 -> 150 | J64: =LA!C20 -> 150 | K64: =LA!D20 -> 150 | L64: =LA!E20 -> 150 | M64: =LA!F20 -> 150 | N64: =LA!G20 -> 150 | O64: =LA!H20 -> 150 | P64: =LA!I20 -> 150 | Q64: =LA!J20 -> 150 | R64: =LA!K20 -> 150 | S64: =LA!L20 -> 150 | T64: =LA!M20 -> 150
A65: 1 | B65: 01 | C65: 2018 | D65: 5 | E65: Kosten | F65: Direkte Kosten | G65: Abschreibungen | H65: 1 | I65: =LA!B21 -> 0 | J65: =LA!C21 -> 0 | K65: =LA!D21 -> 0 | L65: =LA!E21 -> 0 | M65: =LA!F21 -> 0 | N65: =LA!G21 -> 0 | O65: =LA!H21 -> 0 | P65: =LA!I21 -> 0 | Q65: =LA!J21 -> 0 | R65: =LA!K21 -> 0 | S65: =LA!L21 -> 0 | T65: =LA!M21 -> 0
A66: 1 | B66: 01 | C66: 2018 | D66: 5 | E66: Kosten | F66: Direkte Kosten | G66: Gemeinkosten | H66: 1 | I66: =LA!B22 -> 3250 | J66: =LA!C22 -> 3250 | K66: =LA!D22 -> 3250 | L66: =LA!E22 -> 3250 | M66: =LA!F22 -> 3250 | N66: =LA!G22 -> 3250 | O66: =LA!H22 -> 3250 | P66: =LA!I22 -> 3250 | Q66: =LA!J22 -> 3250 | R66: =LA!K22 -> 3250 | S66: =LA!L22 -> 3250 | T66: =LA!M22 -> 3250
A67: 1 | B67: 01 | C67: 2018 | D67: 6 | E67: Umsatzerlöse | F67: VE Teile | H67: 1 | I67: ='T&Z'!B4*-1 -> -133686.3083 | J67: ='T&Z'!C4*-1 -> -125589.8135 | K67: ='T&Z'!D4*-1 -> -165652.6218 | L67: ='T&Z'!E4*-1 -> -160046.9888 | M67: ='T&Z'!F4*-1 -> -158164.083 | N67: ='T&Z'!G4*-1 -> -145548.6145 | O67: ='T&Z'!H4*-1 -> -139146.7349 | P67: ='T&Z'!I4*-1 -> -159858.6982 | Q67: ='T&Z'!J4*-1 -> -138958.4444 | R67: ='T&Z'!K4*-1 -> -173039.0384 | S67: ='T&Z'!L4*-1 -> -213144.9309 | T67: ='T&Z'!M4*-1 -> -170026.3892
A68: 1 | B68: 01 | C68: 2018 | D68: 6 | E68: Einsatzwerte | F68: EW Teile | H68: 1 | I68: ='T&Z'!B5 -> 85559.23728 | J68: ='T&Z'!C5 -> 80377.48066 | K68: ='T&Z'!D5 -> 106017.678 | L68: ='T&Z'!E5 -> 102430.0728 | M68: ='T&Z'!F5 -> 101225.0131 | N68: ='T&Z'!G5 -> 93151.11326 | O68: ='T&Z'!H5 -> 89053.91035 | P68: ='T&Z'!I5 -> 102309.5668 | Q68: ='T&Z'!J5 -> 88933.40438 | R68: ='T&Z'!K5 -> 110744.9846 | S68: ='T&Z'!L5 -> 136412.7558 | T68: ='T&Z'!M5 -> 108816.8891
A69: 1 | B69: 01 | C69: 2018 | D69: 6 | E69: Kosten | F69: Variable Kosten | G69: Fixum/Prov./Soz. | H69: 1 | I69: ='T&Z'!B9 -> 0 | J69: ='T&Z'!C9 -> 0 | K69: ='T&Z'!D9 -> 0 | L69: ='T&Z'!E9 -> 0 | M69: ='T&Z'!F9 -> 0 | N69: ='T&Z'!G9 -> 0 | O69: ='T&Z'!H9 -> 0 | P69: ='T&Z'!I9 -> 0 | Q69: ='T&Z'!J9 -> 0 | R69: ='T&Z'!K9 -> 0 | S69: ='T&Z'!L9 -> 0 | T69: ='T&Z'!M9 -> 0
A70: 1 | B70: 01 | C70: 2018 | D70: 6 | E70: Kosten | F70: Variable Kosten | G70: Provisionen | H70: 1 | I70: ='T&Z'!B10 -> 0 | J70: ='T&Z'!C10 -> 0 | K70: ='T&Z'!D10 -> 0 | L70: ='T&Z'!E10 -> 0 | M70: ='T&Z'!F10 -> 0 | N70: ='T&Z'!G10 -> 0 | O70: ='T&Z'!H10 -> 0 | P70: ='T&Z'!I10 -> 0 | Q70: ='T&Z'!J10 -> 0 | R70: ='T&Z'!K10 -> 0 | S70: ='T&Z'!L10 -> 0 | T70: ='T&Z'!M10 -> 0
A71: 1 | B71: 01 | C71: 2018 | D71: 6 | E71: Kosten | F71: Variable Kosten | G71: Fertigmachen | H71: 1 | I71: ='T&Z'!B11 -> 0 | J71: ='T&Z'!C11 -> 0 | K71: ='T&Z'!D11 -> 0 | L71: ='T&Z'!E11 -> 0 | M71: ='T&Z'!F11 -> 0 | N71: ='T&Z'!G11 -> 0 | O71: ='T&Z'!H11 -> 0 | P71: ='T&Z'!I11 -> 0 | Q71: ='T&Z'!J11 -> 0 | R71: ='T&Z'!K11 -> 0 | S71: ='T&Z'!L11 -> 0 | T71: ='T&Z'!M11 -> 0
A72: 1 | B72: 01 | C72: 2018 | D72: 6 | E72: Kosten | F72: Variable Kosten | G72: Kulanz | H72: 1 | I72: ='T&Z'!B12 -> 1171.5 | J72: ='T&Z'!C12 -> 1100.55 | K72: ='T&Z'!D12 -> 1451.622451 | L72: ='T&Z'!E12 -> 1402.5 | M72: ='T&Z'!F12 -> 1386 | N72: ='T&Z'!G12 -> 1275.45 | O72: ='T&Z'!H12 -> 1219.35 | P72: ='T&Z'!I12 -> 1400.85 | Q72: ='T&Z'!J12 -> 1217.7 | R72: ='T&Z'!K12 -> 1516.35 | S72: ='T&Z'!L12 -> 1867.8 | T72: ='T&Z'!M12 -> 1489.95
A73: 1 | B73: 01 | C73: 2018 | D73: 6 | E73: Kosten | F73: Variable Kosten | G73: sonst. variable Kosten | H73: 1 | I73: ='T&Z'!B13 -> 0 | J73: ='T&Z'!C13 -> 0 | K73: ='T&Z'!D13 -> 0 | L73: ='T&Z'!E13 -> 0 | M73: ='T&Z'!F13 -> 0 | N73: ='T&Z'!G13 -> 0 | O73: ='T&Z'!H13 -> 0 | P73: ='T&Z'!I13 -> 0 | Q73: ='T&Z'!J13 -> 0 | R73: ='T&Z'!K13 -> 0 | S73: ='T&Z'!L13 -> 0 | T73: ='T&Z'!M13 -> 0
A74: 1 | B74: 01 | C74: 2018 | D74: 6 | E74: Kosten | F74: Direkte Kosten | G74: Personalkosten | H74: 1 | I74: ='T&Z'!B16 -> 22515.625 | J74: ='T&Z'!C16 -> 22515.625 | K74: ='T&Z'!D16 -> 22515.625 | L74: ='T&Z'!E16 -> 22515.625 | M74: ='T&Z'!F16 -> 22515.625 | N74: ='T&Z'!G16 -> 22515.625 | O74: ='T&Z'!H16 -> 22515.625 | P74: ='T&Z'!I16 -> 22515.625 | Q74: ='T&Z'!J16 -> 22515.625 | R74: ='T&Z'!K16 -> 22515.625 | S74: ='T&Z'!L16 -> 22515.625 | T74: ='T&Z'!M16 -> 22515.625
A75: 1 | B75: 01 | C75: 2018 | D75: 6 | E75: Kosten | F75: Direkte Kosten | G75: Werbekosten | H75: 1 | I75: ='T&Z'!B17 -> 57.29166667 | J75: ='T&Z'!C17 -> 57.29166667 | K75: ='T&Z'!D17 -> 57.29166667 | L75: ='T&Z'!E17 -> 57.29166667 | M75: ='T&Z'!F17 -> 57.29166667 | N75: ='T&Z'!G17 -> 57.29166667 | O75: ='T&Z'!H17 -> 57.29166667 | P75: ='T&Z'!I17 -> 57.29166667 | Q75: ='T&Z'!J17 -> 57.29166667 | R75: ='T&Z'!K17 -> 57.29166667 | S75: ='T&Z'!L17 -> 57.29166667 | T75: ='T&Z'!M17 -> 57.29166667
A76: 1 | B76: 01 | C76: 2018 | D76: 6 | E76: Kosten | F76: Direkte Kosten | G76: Fahrzeugkosten | H76: 1 | I76: ='T&Z'!B18 -> 229.1666667 | J76: ='T&Z'!C18 -> 229.1666667 | K76: ='T&Z'!D18 -> 229.1666667 | L76: ='T&Z'!E18 -> 229.1666667 | M76: ='T&Z'!F18 -> 229.1666667 | N76: ='T&Z'!G18 -> 229.1666667 | O76: ='T&Z'!H18 -> 229.1666667 | P76: ='T&Z'!I18 -> 229.1666667 | Q76: ='T&Z'!J18 -> 229.1666667 | R76: ='T&Z'!K18 -> 229.1666667 | S76: ='T&Z'!L18 -> 229.1666667 | T76: ='T&Z'!M18 -> 229.1666667
A77: 1 | B77: 01 | C77: 2018 | D77: 6 | E77: Kosten | F77: Direkte Kosten | G77: Abschreibungen | H77: 1 | I77: ='T&Z'!B19 -> 0 | J77: ='T&Z'!C19 -> 0 | K77: ='T&Z'!D19 -> 0 | L77: ='T&Z'!E19 -> 0 | M77: ='T&Z'!F19 -> 0 | N77: ='T&Z'!G19 -> 0 | O77: ='T&Z'!H19 -> 0 | P77: ='T&Z'!I19 -> 0 | Q77: ='T&Z'!J19 -> 0 | R77: ='T&Z'!K19 -> 0 | S77: ='T&Z'!L19 -> 0 | T77: ='T&Z'!M19 -> 0
A78: 1 | B78: 01 | C78: 2018 | D78: 6 | E78: Kosten | F78: Direkte Kosten | G78: Gemeinkosten | H78: 1 | I78: ='T&Z'!B20 -> 114.5833333 | J78: ='T&Z'!C20 -> 114.5833333 | K78: ='T&Z'!D20 -> 114.5833333 | L78: ='T&Z'!E20 -> 114.5833333 | M78: ='T&Z'!F20 -> 114.5833333 | N78: ='T&Z'!G20 -> 114.5833333 | O78: ='T&Z'!H20 -> 114.5833333 | P78: ='T&Z'!I20 -> 114.5833333 | Q78: ='T&Z'!J20 -> 114.5833333 | R78: ='T&Z'!K20 -> 114.5833333 | S78: ='T&Z'!L20 -> 114.5833333 | T78: ='T&Z'!M20 -> 114.5833333
A79: 1 | B79: 01 | C79: 2018 | D79: 7 | E79: Umsatzerlöse | F79: VE Mietwagen | H79: 1 | I79: =MW!B3*-1 -> -8410.2 | J79: =MW!C3*-1 -> -8057.1 | K79: =MW!D3*-1 -> -10635.8 | L79: =MW!E3*-1 -> -7265.3 | M79: =MW!F3*-1 -> -9458.8 | N79: =MW!G3*-1 -> -9951 | O79: =MW!H3*-1 -> -8527.9 | P79: =MW!I3*-1 -> -8495.8 | Q79: =MW!J3*-1 -> -8025 | R79: =MW!K3*-1 -> -7789.6 | S79: =MW!L3*-1 -> -9533.7 | T79: =MW!M3*-1 -> -10849.8
A80: 1 | B80: 01 | C80: 2018 | D80: 7 | E80: Einsatzwerte | F80: EW Mietwagen | H80: 1 | I80: =MW!B4 -> 0 | J80: =MW!C4 -> 0 | K80: =MW!D4 -> 0 | L80: =MW!E4 -> 0 | M80: =MW!F4 -> 0 | N80: =MW!G4 -> 0 | O80: =MW!H4 -> 0 | P80: =MW!I4 -> 0 | Q80: =MW!J4 -> 0 | R80: =MW!K4 -> 0 | S80: =MW!L4 -> 0 | T80: =MW!M4 -> 0
A81: 1 | B81: 01 | C81: 2018 | D81: 7 | E81: Kosten | F81: Variable Kosten | G81: Fixum/Prov./Soz. | H81: 1 | I81: =MW!B8 -> 0 | J81: =MW!C8 -> 0 | K81: =MW!D8 -> 0 | L81: =MW!E8 -> 0 | M81: =MW!F8 -> 0 | N81: =MW!G8 -> 0 | O81: =MW!H8 -> 0 | P81: =MW!I8 -> 0 | Q81: =MW!J8 -> 0 | R81: =MW!K8 -> 0 | S81: =MW!L8 -> 0 | T81: =MW!M8 -> 0
A82: 1 | B82: 01 | C82: 2018 | D82: 7 | E82: Kosten | F82: Variable Kosten | G82: Provisionen | H82: 1 | I82: =MW!B9 -> 0 | J82: =MW!C9 -> 0 | K82: =MW!D9 -> 0 | L82: =MW!E9 -> 0 | M82: =MW!F9 -> 0 | N82: =MW!G9 -> 0 | O82: =MW!H9 -> 0 | P82: =MW!I9 -> 0 | Q82: =MW!J9 -> 0 | R82: =MW!K9 -> 0 | S82: =MW!L9 -> 0 | T82: =MW!M9 -> 0
A83: 1 | B83: 01 | C83: 2018 | D83: 7 | E83: Kosten | F83: Variable Kosten | G83: Fertigmachen | H83: 1 | I83: =MW!B10 -> 0 | J83: =MW!C10 -> 0 | K83: =MW!D10 -> 0 | L83: =MW!E10 -> 0 | M83: =MW!F10 -> 0 | N83: =MW!G10 -> 0 | O83: =MW!H10 -> 0 | P83: =MW!I10 -> 0 | Q83: =MW!J10 -> 0 | R83: =MW!K10 -> 0 | S83: =MW!L10 -> 0 | T83: =MW!M10 -> 0
A84: 1 | B84: 01 | C84: 2018 | D84: 7 | E84: Kosten | F84: Variable Kosten | G84: Kulanz | H84: 1 | I84: =MW!B11 -> 0 | J84: =MW!C11 -> 0 | K84: =MW!D11 -> 0 | L84: =MW!E11 -> 0 | M84: =MW!F11 -> 0 | N84: =MW!G11 -> 0 | O84: =MW!H11 -> 0 | P84: =MW!I11 -> 0 | Q84: =MW!J11 -> 0 | R84: =MW!K11 -> 0 | S84: =MW!L11 -> 0 | T84: =MW!M11 -> 0
A85: 1 | B85: 01 | C85: 2018 | D85: 7 | E85: Kosten | F85: Variable Kosten | G85: sonst. variable Kosten | H85: 1 | I85: =MW!B12 -> 0 | J85: =MW!C12 -> 0 | K85: =MW!D12 -> 0 | L85: =MW!E12 -> 0 | M85: =MW!F12 -> 0 | N85: =MW!G12 -> 0 | O85: =MW!H12 -> 0 | P85: =MW!I12 -> 0 | Q85: =MW!J12 -> 0 | R85: =MW!K12 -> 0 | S85: =MW!L12 -> 0 | T85: =MW!M12 -> 0
A86: 1 | B86: 01 | C86: 2018 | D86: 7 | E86: Kosten | F86: Direkte Kosten | G86: Personalkosten | H86: 1 | I86: =MW!B15 -> 250 | J86: =MW!C15 -> 250 | K86: =MW!D15 -> 250 | L86: =MW!E15 -> 250 | M86: =MW!F15 -> 250 | N86: =MW!G15 -> 250 | O86: =MW!H15 -> 250 | P86: =MW!I15 -> 250 | Q86: =MW!J15 -> 250 | R86: =MW!K15 -> 250 | S86: =MW!L15 -> 250 | T86: =MW!M15 -> 250
A87: 1 | B87: 01 | C87: 2018 | D87: 7 | E87: Kosten | F87: Direkte Kosten | G87: Werbekosten | H87: 1 | I87: =MW!B16 -> 6.25 | J87: =MW!C16 -> 6.25 | K87: =MW!D16 -> 6.25 | L87: =MW!E16 -> 6.25 | M87: =MW!F16 -> 6.25 | N87: =MW!G16 -> 6.25 | O87: =MW!H16 -> 6.25 | P87: =MW!I16 -> 6.25 | Q87: =MW!J16 -> 6.25 | R87: =MW!K16 -> 6.25 | S87: =MW!L16 -> 6.25 | T87: =MW!M16 -> 6.25
A88: 1 | B88: 01 | C88: 2018 | D88: 7 | E88: Kosten | F88: Direkte Kosten | G88: Fahrzeugkosten | H88: 1 | I88: =MW!B17 -> 2000 | J88: =MW!C17 -> 2000 | K88: =MW!D17 -> 2000 | L88: =MW!E17 -> 2000 | M88: =MW!F17 -> 2000 | N88: =MW!G17 -> 2000 | O88: =MW!H17 -> 2000 | P88: =MW!I17 -> 2000 | Q88: =MW!J17 -> 2000 | R88: =MW!K17 -> 2000 | S88: =MW!L17 -> 2000 | T88: =MW!M17 -> 2000
A89: 1 | B89: 01 | C89: 2018 | D89: 7 | E89: Kosten | F89: Direkte Kosten | G89: Abschreibungen | H89: 1 | I89: =MW!B18 -> 3993.75 | J89: =MW!C18 -> 3993.75 | K89: =MW!D18 -> 3993.75 | L89: =MW!E18 -> 3993.75 | M89: =MW!F18 -> 3993.75 | N89: =MW!G18 -> 3993.75 | O89: =MW!H18 -> 3993.75 | P89: =MW!I18 -> 3993.75 | Q89: =MW!J18 -> 3993.75 | R89: =MW!K18 -> 3993.75 | S89: =MW!L18 -> 3993.75 | T89: =MW!M18 -> 3993.75
A90: 1 | B90: 01 | C90: 2018 | D90: 7 | E90: Kosten | F90: Direkte Kosten | G90: Gemeinkosten | H90: 1 | I90: =MW!B19 -> 0 | J90: =MW!C19 -> 0 | K90: =MW!D19 -> 0 | L90: =MW!E19 -> 0 | M90: =MW!F19 -> 0 | N90: =MW!G19 -> 0 | O90: =MW!H19 -> 0 | P90: =MW!I19 -> 0 | Q90: =MW!J19 -> 0 | R90: =MW!K19 -> 0 | S90: =MW!L19 -> 0 | T90: =MW!M19 -> 0
A91: 1 | B91: 01 | C91: 2018 | D91: 0 | E91: Kosten | F91: Indirekte Kosten | G91: Personalkosten | H91: 1 | I91: ='C&S'!B25 -> 27916.66667 | J91: ='C&S'!C25 -> 27916.66667 | K91: ='C&S'!D25 -> 27916.66667 | L91: ='C&S'!E25 -> 27916.66667 | M91: ='C&S'!F25 -> 27916.66667 | N91: ='C&S'!G25 -> 27916.66667 | O91: ='C&S'!H25 -> 27916.66667 | P91: ='C&S'!I25 -> 27916.66667 | Q91: ='C&S'!J25 -> 27916.66667 | R91: ='C&S'!K25 -> 27916.66667 | S91: ='C&S'!L25 -> 27916.66667 | T91: ='C&S'!M25 -> 27916.66667
A92: 1 | B92: 01 | C92: 2018 | D92: 0 | E92: Kosten | F92: Indirekte Kosten | G92: Werbekosten | H92: 1 | I92: ='C&S'!B26 -> 1000 | J92: ='C&S'!C26 -> 1000 | K92: ='C&S'!D26 -> 1000 | L92: ='C&S'!E26 -> 1000 | M92: ='C&S'!F26 -> 1000 | N92: ='C&S'!G26 -> 1000 | O92: ='C&S'!H26 -> 1000 | P92: ='C&S'!I26 -> 1000 | Q92: ='C&S'!J26 -> 1000 | R92: ='C&S'!K26 -> 1000 | S92: ='C&S'!L26 -> 1000 | T92: ='C&S'!M26 -> 1000
A93: 1 | B93: 01 | C93: 2018 | D93: 0 | E93: Kosten | F93: Indirekte Kosten | G93: Fahrzeugkosten | H93: 1 | I93: ='C&S'!B27 -> 916.6666667 | J93: ='C&S'!C27 -> 916.6666667 | K93: ='C&S'!D27 -> 916.6666667 | L93: ='C&S'!E27 -> 916.6666667 | M93: ='C&S'!F27 -> 916.6666667 | N93: ='C&S'!G27 -> 916.6666667 | O93: ='C&S'!H27 -> 916.6666667 | P93: ='C&S'!I27 -> 916.6666667 | Q93: ='C&S'!J27 -> 916.6666667 | R93: ='C&S'!K27 -> 916.6666667 | S93: ='C&S'!L27 -> 916.6666667 | T93: ='C&S'!M27 -> 916.6666667
A94: 1 | B94: 01 | C94: 2018 | D94: 0 | E94: Kosten | F94: Indirekte Kosten | G94: Abschreibungen | H94: 1 | I94: ='C&S'!B28 -> 10000 | J94: ='C&S'!C28 -> 10000 | K94: ='C&S'!D28 -> 10000 | L94: ='C&S'!E28 -> 10000 | M94: ='C&S'!F28 -> 10000 | N94: ='C&S'!G28 -> 10000 | O94: ='C&S'!H28 -> 10000 | P94: ='C&S'!I28 -> 10000 | Q94: ='C&S'!J28 -> 10000 | R94: ='C&S'!K28 -> 10000 | S94: ='C&S'!L28 -> 10000 | T94: ='C&S'!M28 -> 10000
A95: 1 | B95: 01 | C95: 2018 | D95: 0 | E95: Kosten | F95: Indirekte Kosten | G95: Gemeinkosten | H95: 1 | I95: ='C&S'!B29 -> 32500 | J95: ='C&S'!C29 -> 32500 | K95: ='C&S'!D29 -> 32500 | L95: ='C&S'!E29 -> 32500 | M95: ='C&S'!F29 -> 32500 | N95: ='C&S'!G29 -> 32500 | O95: ='C&S'!H29 -> 32500 | P95: ='C&S'!I29 -> 32500 | Q95: ='C&S'!J29 -> 32500 | R95: ='C&S'!K29 -> 32500 | S95: ='C&S'!L29 -> 32500 | T95: ='C&S'!M29 -> 32500
A96: 1 | B96: 01 | C96: 2018 | D96: 0 | E96: Kosten | F96: Indirekte Kosten | G96: Raumkosten | H96: 1 | I96: ='C&S'!B30 -> 14342.75 | J96: ='C&S'!C30 -> 14342.75 | K96: ='C&S'!D30 -> 14342.75 | L96: ='C&S'!E30 -> 14342.75 | M96: ='C&S'!F30 -> 14342.75 | N96: ='C&S'!G30 -> 14342.75 | O96: ='C&S'!H30 -> 14342.75 | P96: ='C&S'!I30 -> 14342.75 | Q96: ='C&S'!J30 -> 14342.75 | R96: ='C&S'!K30 -> 14342.75 | S96: ='C&S'!L30 -> 14342.75 | T96: ='C&S'!M30 -> 14342.75
A97: 1 | B97: 01 | C97: 2018 | D97: 0 | E97: Kosten | F97: Indirekte Kosten | G97: Kalk. Kosten | H97: 1 | I97: ='C&S'!B31 -> 5500 | J97: ='C&S'!C31 -> 5500 | K97: ='C&S'!D31 -> 5500 | L97: ='C&S'!E31 -> 5500 | M97: ='C&S'!F31 -> 5500 | N97: ='C&S'!G31 -> 5500 | O97: ='C&S'!H31 -> 5500 | P97: ='C&S'!I31 -> 5500 | Q97: ='C&S'!J31 -> 5500 | R97: ='C&S'!K31 -> 5500 | S97: ='C&S'!L31 -> 5500 | T97: ='C&S'!M31 -> 5500
A98: 1 | B98: 01 | C98: 2018 | D98: 0 | E98: Neutrales Ergebnis | F98: Neutraler Ertrag | H98: 1 | I98: ='C&S'!B34*-1 -> 6416.666667 | J98: ='C&S'!C34*-1 -> 6416.666667 | K98: ='C&S'!D34*-1 -> 6416.666667 | L98: ='C&S'!E34*-1 -> 6416.666667 | M98: ='C&S'!F34*-1 -> 6416.666667 | N98: ='C&S'!G34*-1 -> 6416.666667 | O98: ='C&S'!H34*-1 -> 6416.666667 | P98: ='C&S'!I34*-1 -> 6416.666667 | Q98: ='C&S'!J34*-1 -> 6416.666667 | R98: ='C&S'!K34*-1 -> 6416.666667 | S98: ='C&S'!L34*-1 -> 6416.666667 | T98: ='C&S'!M34*-1 -> 6416.666667
